Cogmind - Beta 16 @@@ ROGUE MODE // 2025.11.18 @ 00:32:13 Player: Runia Result: Defending 0bPrime! Performance ------------- Evolutions (8) 4000 Regions Visited (30) 6000 Robots Destroyed (219) 1095 Value Destroyed (8274) 8274 Prototype IDs (75) 1500 Alien Tech Used (3) 600 Bonus (20875) 20875 TOTAL SCORE: 42344 Bonus ------- High Alert Combat Kills 1538 Follower Combat Kills 557 Registered with UFD 300 Met Optimus in HQ 500 Met Imprinter 300 Met Zhirov 300 Met Warlord at Base 500 MAIN.C Attacked Warlord 500 Met Optimus at Protoforge 1000 Executed Drillbomb Mission 10000 Optimus Survived to 0b1 3000 Win 3000 Friendly Fire -620 Cogmind --------- Core Integrity 1191/1450 Matter 250/300 Energy 1650/1650 System Corruption 5% Temperature Cool (0) Movement Flying (29) Location 0bPrime Parts ------- > --- POWER (2) -------- Improved Quantum Reactor Hybrid Graviton Reactor > --- PROPULSION (8) --- Cooled Cesium-ion Thruster Cooled Cesium-ion Thruster Impulse Thruster Array Impulse Thruster Array Impulse Thruster Array > --- UTILITY (11) ----- Medium Storage Unit Advanced Quantum Shading Machine Experimental Optical Array Experimental Active Sensor Suite Experimental Core Analyzer Experimental Armor Integrity Analyzer Experimental Weapon Cycler Experimental Utility Shielding Centrium Medium Armor Plating Graphene Brace > --- WEAPON (3) ------- Concept XC Strikerail Sigix Broadsword > --- INVENTORY (10) --- (None) Peak State ------------ > --- POWER ------------ Improved Quantum Reactor Hybrid Graviton Reactor > --- PROPULSION ------- Cooled Cesium-ion Thruster Cooled Cesium-ion Thruster Impulse Thruster Array Impulse Thruster Array Impulse Thruster Array > --- UTILITY ---------- Medium Storage Unit Advanced Quantum Shading Machine Experimental Optical Array Experimental Active Sensor Suite Experimental Core Analyzer Experimental Armor Integrity Analyzer Experimental Weapon Cycler Experimental Utility Shielding Centrium Medium Armor Plating Graphene Brace > --- WEAPON ----------- Concept XC Strikerail Sigix Broadsword > --- INVENTORY -------- UFD Drillbomb [Rating: 224] Favorites ----------- Power Cooled Ion Engine Engine Cooled Ion Engine Power Core Light Fission Core Reactor Improved Quantum Reactor Propulsion Light Treads Treads Light Treads Leg Aluminum Leg Wheel Armored Wheel Flight Unit Cooled Field Propulsion Drive Utility Huge Storage Unit Device Cooling System Storage Huge Storage Unit Processor Advanced Signal Interpreter Hackware Advanced Hacking Suite Protection Light Armor Plating Weapon Particle Cannon Energy Gun Small Laser Energy Cannon Particle Cannon Ballistic Gun Concept XC Strikerail Launcher Scatter Rocket Array Special Weapon CPS Tube Impact Weapon Makeshift Hammer Slashing Weapon Sigix Broadsword Piercing Weapon Vortex Lance Special Melee Weapon Datajack Build | -11 -10 -10 -9 -9 -9 -9 -6 -6 -6 -6 -6 -6 -5 -5 -5 -5 -5 -5 -5 -4 -4 -4 -4 -4 -3 -3 -3 -2 -2 -2 ------- Run | Yrd Mat Min Mat Sto Rec Scr Fac Was Fac Low Low Zio Pro Fac Was Fac Upp Upp War Pro Fac Upp Upp Zhi Pro Res Tes Res Qua Frg Slots Evolved 16 | . . . 2 . . . 6 . . . . . . 2 . . . . . . 2 . . . . 2 . 2 . . Power 1 | . . . . . . . . . . . . . . . . . . . . . 1 . . . . . . . . . Propulsion 6 | . . . 1 . . . 2 . . . . . . 1 . . . . . . 1 . . . . . . 1 . . Utility 9 | . . . 1 . . . 4 . . . . . . 1 . . . . . . . . . . . 2 . 1 . . Weapon . | . . . . . . . . . . . . . . . . . . . . . . . . . . . . . . . Parts Attached 180 | 3 10 4 21 15 6 13 17 10 9 . 1 5 1 8 2 1 2 . 7 1 6 1 . 2 . 3 4 4 1 23 Power 22 | . 1 1 2 3 . 1 1 1 2 . 1 . . . . . . . . . 1 . . 1 . . . 1 . 6 Engine 9 | . 1 1 1 3 . 1 1 . 1 . . . . . . . . . . . . . . . . . . . . . Core 5 | . . . 1 . . . . 1 1 . 1 . . . . . . . . . 1 . . . . . . . . . Reactor 8 | . . . . . . . . . . . . . . . . . . . . . . . . 1 . . . 1 . 6 Propulsion 57 | 2 2 2 7 8 3 5 7 2 . . . . . 4 1 . . . 1 1 3 . . . . . 2 2 . 5 Treads 27 | 1 1 1 7 8 3 4 2 . . . . . . . . . . . . . . . . . . . . . . . Leg . | . . . . . . . . . . . . . . . . . . . . . . . . . . . . . . . Wheel 5 | 1 1 1 . . . 1 1 . . . . . . . . . . . . . . . . . . . . . . . Hover . | . . . . . . . . . . . . . . . . . . . . . . . . . . . . . . . Flight 25 | . . . . . . . 4 2 . . . . . 4 1 . . . 1 1 3 . . . . . 2 2 . 5 Utility 61 | . 4 . 4 2 2 1 7 5 6 . . 3 . 3 . 1 2 . 3 . 1 1 . 1 . 2 1 1 . 11 Device 22 | . 2 . 2 1 . . 3 1 1 . . . . 1 . . 1 . 2 . 1 . . . . 1 . . . 6 Storage 4 | . 2 . . . . . . . 1 . . . . . . . . . . . . . . . . . . 1 . . Processor 9 | . . . . . . . . 1 3 . . . . . . . . . . . . . . . . 1 . . . 4 Hackware 8 | . . . . . . . 1 2 1 . . 1 . 1 . 1 . . 1 . . . . . . . . . . . Protection 18 | . . . 2 1 2 1 3 1 . . . 2 . 1 . . 1 . . . . 1 . 1 . . 1 . . 1 Artifact . | . . . . . . . . . . . . . . . . . . . . . . . . . . . . . . . Weapon 40 | 1 3 1 8 2 1 6 2 2 1 . . 2 1 1 1 . . . 3 . 1 . . . . 1 1 . 1 1 Energy Gun 4 | . 1 1 1 . . . . . . . . . . . . . . . 1 . . . . . . . . . . . Energy Cannon 13 | . . . 4 1 . 3 1 . . . . 2 . . . . . . . . . . . . . 1 1 . . . Ballistic Gun 7 | 1 2 . 1 . . 1 . . . . . . . . 1 . . . . . . . . . . . . . . 1 Ballistic Cannon . | . . . . . . . . . . . . . . . . . . . . . . . . . . . . . . . Launcher 5 | . . . 2 1 . . 1 . . . . . . . . . . . . . 1 . . . . . . . . . Special Weapon 2 | . . . . . . 1 . . . . . . 1 . . . . . . . . . . . . . . . . . Impact Weapon 3 | . . . . . . 1 . . 1 . . . . 1 . . . . . . . . . . . . . . . . Slashing Weapon 2 | . . . . . . . . 1 . . . . . . . . . . . . . . . . . . . . 1 . Piercing Weapon 3 | . . . . . . . . 1 . . . . . . . . . . 2 . . . . . . . . . . . Special Melee Weapon 1 | . . . . . 1 . . . . . . . . . . . . . . . . . . . . . . . . . Unidentified Prototypes 28 | . . . 1 2 . . 1 2 1 . 1 . . . . . . . 5 . . . . 3 . . 2 . 1 9 Parts Lost 36 | . 4 1 7 2 . . 18 . 1 . . . . . . . . . . 1 . . . . . . . . . 2 Power 4 | . . . 1 . . . 2 . 1 . . . . . . . . . . . . . . . . . . . . . Propulsion 17 | . 2 . 4 . . . 8 . . . . . . . . . . . . 1 . . . . . . . . . 2 Utility 9 | . 1 . 1 2 . . 5 . . . . . . . . . . . . . . . . . . . . . . . Weapon 6 | . 1 1 1 . . . 3 . . . . . . . . . . . . . . . . . . . . . . . Highest Loss Streak 11 | . 1 1 6 1 . . 11 . 1 . . . . . . . . . . 1 . . . . . . . . . 1 To Critical Strikes . | . . . . . . . . . . . . . . . . . . . . . . . . . . . . . . . Average Backups 16 | 4 9 16 19 24 24 22 21 6 5 8 8 9 9 8 9 9 8 9 9 9 9 10 10 10 10 8 10 8 8 2 Power . | 1 1 2 . . 1 . . . . 1 1 1 1 1 1 1 1 1 1 1 . . . . . . . . . . Propulsion 3 | 2 2 2 1 6 6 5 3 . . . . . 1 . . 1 1 1 1 1 2 3 3 2 2 2 3 2 1 . Utility 5 | . 1 4 7 7 7 8 8 2 3 4 4 4 4 4 4 4 3 4 5 5 5 6 6 6 6 4 3 2 2 . Weapon 4 | 1 5 7 8 8 9 5 5 1 1 2 2 2 2 2 2 2 2 1 1 1 1 1 1 1 1 1 1 2 2 1 Tool/Special . | . . . . . . . . . . . . . . . . . . . . . . . . . . . . . . . Unused Backups 56 | 5 2 . 5 7 1 12 5 4 . . . 1 . . 1 . . . . . 1 . . 2 . 1 1 . 1 7 Power 5 | 1 . . 1 1 . 1 . . . . . . . . . . . . . . 1 . . . . . . . . . Propulsion 9 | 2 . . . 3 . 1 1 . . . . . . . . . . . . . . . . 1 . . . . . 1 Utility 18 | 1 . . . 2 1 5 3 1 . . . 1 . . 1 . . . . . . . . 1 . . 1 . . 1 Weapon 18 | 1 2 . 4 1 . 4 1 1 . . . . . . . . . . . . . . . . . 1 . . . 3 Tool/Special 6 | . . . . . . 1 . 2 . . . . . . . . . . . . . . . . . . . . 1 2 Average Slot Usage (%) 94 | . 93 99 97 99 95 97 88 90 100 100 100 93 93 93 93 94 94 94 93 94 90 90 90 90 90 89 89 90 83 82 Engine 6 | . 14 14 2 10 11 10 5 . . . . . . . . . . . . . . . . . . . . . . . Core 2 | . . . 8 . . . . 4 6 6 6 6 6 5 5 5 5 5 5 5 10 10 10 9 10 9 9 6 . . Treads 16 | . 14 14 22 33 33 27 22 . . . . . . . . . . . . . . . . . . . . . . . Wheel 3 | . 11 14 10 . . 4 5 . . . . . . . . . . . . . . . . . . . . . . . Flight 9 | . . . . . . . . 32 33 33 33 31 31 32 27 27 27 27 27 27 25 25 25 25 25 22 22 25 25 22 Device 11 | . 10 14 11 11 11 10 17 11 9 8 6 6 6 11 11 11 10 10 13 5 5 5 8 8 5 11 13 12 12 14 Storage 8 | . 14 14 11 11 11 10 6 1 4 6 6 6 6 5 5 5 5 5 5 5 5 5 5 5 5 4 4 4 4 4 Processor 2 | . . . . . . . . 4 6 6 6 6 6 5 5 5 5 5 5 5 5 5 5 5 5 8 9 8 8 14 Hackware 4 | . . . . . . . 2 18 20 20 20 18 18 14 11 15 16 16 16 16 15 15 15 15 15 13 13 12 12 1 Protection 8 | . . . 9 10 11 10 12 4 4 4 6 6 6 5 11 5 5 5 2 11 10 10 6 6 10 5 4 7 8 8 Energy Gun 1 | . 23 9 2 . . . . . . . . . . . . . . . . . . . . . . . . . . . Energy Cannon 10 | . . . 15 21 14 16 12 . . . . . 4 4 5 5 5 5 5 5 5 5 5 5 5 4 3 4 4 . Ballistic Gun 1 | . 4 18 2 . . . . . . . . . . . 3 5 5 5 2 . . . . . . . . . . 3 Impact Weapon 1 | . . . . . . 2 . . 4 6 6 6 1 2 5 5 5 5 3 . . . . . . . . . . . Piercing Weapon 1 | . . . . . . . . 4 6 6 6 6 6 2 1 . . . 5 11 9 10 10 10 10 9 9 8 1 . Peak Build Rating 224 | 6 11 13 19 23 19 27 53 88 88 81 82 86 83 96 98 101 106 101 118 118 127 125 126 132 126 148 162 175 189 224 Average Rating 62 | 5 8 12 16 18 17 22 43 81 80 80 80 81 82 91 96 100 103 100 109 117 123 125 125 126 125 145 155 170 185 208 On Entrance 85 | 6 6 11 13 17 19 16 26 39 88 81 80 81 82 81 88 98 100 100 101 114 118 125 125 126 126 126 147 156 174 189 Avg Prop Armor Cover (%) 10 | . 12 11 16 . . 14 11 2 5 . . . . 2 . . . . . . . . . . . . . . . . Naked Turns 111 | . . . . . . 111 . . . . . . . . . . . . . . . . . . . . . . . . Heaviest Build 120 | 13 90 93 102 107 101 105 120 81 29 29 29 27 31 34 41 41 41 41 41 39 47 47 46 46 46 51 51 59 61 74 Greatest Support 91 | 16 20 16 60 60 60 73 91 33 33 33 33 33 33 42 42 44 44 44 44 49 60 51 60 51 60 51 54 63 71 91 Greatest Overweight (x) 9 | . 8 9 6 1 1 8 9 2 . . . . . . . . . . . . . . . . . . . . . . Average Overweight (x) 1 | . 5 7 5 1 1 4 5 . . . . . . . . . . . . . . . . . . . . . . . Largest Inventory Capacity 25 | 8 25 25 25 25 25 25 25 25 10 10 10 10 10 10 10 10 10 10 10 10 10 10 10 10 10 10 10 10 10 10 Average Capacity 19 | 8 20 25 25 25 25 24 25 9 8 10 10 10 10 10 10 10 10 10 10 10 10 10 10 10 10 10 10 10 10 10 Most Carried 25 | 6 18 18 25 25 25 25 25 19 10 9 10 10 10 10 10 10 10 10 10 10 10 10 10 10 10 10 10 10 10 10 Average Carried 17 | 4 9 16 19 24 24 23 23 7 6 9 9 10 10 9 9 10 9 10 9 10 9 10 10 9 10 8 9 8 9 7 Final Capacity 25 | 8 25 25 25 25 25 25 25 5 10 10 10 10 10 10 10 10 10 10 10 10 10 10 10 10 10 10 10 10 10 10 Final Carried 25 | 4 14 16 19 24 25 25 20 5 9 9 10 10 10 10 10 10 10 10 10 10 10 10 10 10 10 10 10 10 10 . Class Distribution -------------------- 37% | Mutant 16% | Commander-Mutant 11% | Hacker-Scout 11% | Scavenger-Mutant 9% | Hacker-Sprinter 5% | Hacker-Ninja 4% | Scavenger-Ninja 4% | Scavenger-Scout Dominant Class ---------------- Mutant | -10/Materials Mutant | -10/Mines Mutant | -9/Materials Scavenger-Mutant | -9/Storage Commander-Mutant | -9/Recycling Mutant | -9/Scraptown Scavenger-Mutant | -6/Factory Hacker-Sprinter | -6/Waste Hacker-Sprinter | -6/Factory Hacker-Sprinter | -6/Lower Caves Hacker-Sprinter | -6/Lower Caves Hacker-Sprinter | -6/Zion Hacker-Sprinter | -5/Proximity Caves Hacker-Scout | -5/Factory Hacker-Scout | -5/Waste Hacker-Scout | -5/Factory Hacker-Scout | -5/Upper Caves Hacker-Scout | -5/Upper Caves Hacker-Scout | -5/Warlord Hacker-Sprinter | -4/Proximity Caves Hacker-Sprinter | -4/Factory Hacker-Sprinter | -4/Upper Caves Hacker-Scout | -4/Upper Caves Hacker-Scout | -4/Zhirov Hacker-Sprinter | -3/Proximity Caves Hacker-Ninja | -3/Research Hacker-Ninja | -3/Testing Hacker-Ninja | -2/Research Hacker-Ninja | -2/Quarantine Scavenger-Ninja | -2/Protoforge Resources | -11 -10 -10 -9 -9 -9 -9 -6 -6 -6 -6 -6 -6 -5 -5 -5 -5 -5 -5 -5 -4 -4 -4 -4 -4 -3 -3 -3 -2 -2 -2 ----------- Run | Yrd Mat Min Mat Sto Rec Scr Fac Was Fac Low Low Zio Pro Fac Was Fac Upp Upp War Pro Fac Upp Upp Zhi Pro Res Tes Res Qua Frg Matter Collected 5264 | 200 232 124 412 325 78 300 299 200 148 53 30 90 115 135 158 10 20 30 . 55 254 31 10 . . . 175 148 . 1632 Remotely . | . . . . . . . . . . . . . . . . . . . . . . . . . . . . . . . Salvage Created 10422 | . 839 109 1386 1356 216 633 910 . 148 49 41 . 115 233 112 223 . . . . 348 . . . . . 46 173 . 3485 Parts 480 | . 39 2 73 74 11 17 57 . 2 2 2 . 1 4 7 5 . . . . 19 . . . . . 2 6 . 157 Haulers Intercepted 17 | . 2 . 4 4 . . 2 . . . . . . 2 . 2 . . . . . . . . . . . . . 1 Recyclers Shooed 3 | . . . 2 . . . 1 . . . . . . . . . . . . . . . . . . . . . . . Parts Field Recycled . | . . . . . . . . . . . . . . . . . . . . . . . . . . . . . . . Retrieved Matter . | . . . . . . . . . . . . . . . . . . . . . . . . . . . . . . . Parts Self-Destructed 4 | . . . . . . . . . . . 2 . . . . . . . . . . . 2 . . . . . . . Prevented . | . . . . . . . . . . . . . . . . . . . . . . . . . . . . . . . Parts Restored . | . . . . . . . . . . . . . . . . . . . . . . . . . . . . . . . Kills | -11 -10 -10 -9 -9 -9 -9 -6 -6 -6 -6 -6 -6 -5 -5 -5 -5 -5 -5 -5 -4 -4 -4 -4 -4 -3 -3 -3 -2 -2 -2 ------- Run | Yrd Mat Min Mat Sto Rec Scr Fac Was Fac Low Low Zio Pro Fac Was Fac Upp Upp War Pro Fac Upp Upp Zhi Pro Res Tes Res Qua Frg Combat Hostiles Destroyed 141 | . 17 2 30 23 4 . 17 . . . 1 . . . . . . . . . 5 . . . . . . . . 42 Melee 1 | . . . . . . . . . . . 1 . . . . . . . . . . . . . . . . . . . Guns 68 | . 17 2 7 . . . . . . . . . . . . . . . . . . . . . . . . . . 42 Cannons 44 | . . . 11 22 4 . 7 . . . . . . . . . . . . . . . . . . . . . . . AOE 27 | . . . 12 . . . 10 . . . . . . . . . . . . . 5 . . . . . . . . . Classes Destroyed 25 | . 6 1 2 . . 3 4 . . 1 . . . . . . . . . . 1 . . . . . . . . 7 Worker 10 | . 1 . 3 . . 1 1 . . . . . . 1 . . . . . . 1 . . . . . . 2 . . Builder 8 | . . . . . . 1 7 . . . . . . . . . . . . . . . . . . . . . . . Tunneler 1 | . . . . . . . 1 . . . . . . . . . . . . . . . . . . . . . . . Hauler 17 | . 2 . 4 4 . . 2 . . . . . . 2 . 2 . . . . . . . . . . . . . 1 Recycler 8 | . . . 2 1 . . 1 . 1 . . . . . . . . . . . 2 . . . . . . 1 . . Mechanic 4 | . . . . . . . . . . . . . . . . . . . . . . . . . . . . . . 4 Operator 4 | . 2 . . . . . . . . . . . . . . . . . . . 1 . . . . . . . . 1 Drone 4 | . . . . . . . . . . . . . . . . . . . . . . . . . . . . . . 4 Watcher 9 | . 1 . . 1 . . . . . . . . . 1 . . . . . . . . . . . . 1 . . 5 Swarmer 24 | . 3 . 4 4 . . 2 . . . . . . . . . . . . . 5 . . . . . . . . 6 Cutter 1 | . . . . . . . . . . . . . . . . . . . . . 1 . . . . . . . . . Grunt 57 | . 14 . 20 4 . 12 3 . . . . . . . . . . . . . . . . . . . . . . 4 Brawler 1 | . . . . . . . . . . . . . . . . . . . . . . . . . . . . . . 1 Duelist 5 | . . . 2 . 1 . . . . . . . . . . . . . . . . . . . . . . . . 2 Protector 3 | . . . . . . . 2 . . . . . . . . . . . . . . . . . . . . . . 1 Sentry 25 | . . 1 4 15 3 . 1 . . . . . . . . . . . . . . . . . . . . . . 1 Demolisher 1 | . . . . . . 1 . . . . . . . . . . . . . . . . . . . . . . . . Specialist 4 | . . . . . . . 1 . . . . . . . . . . . . . . . . . . . . . . 3 Hunter 10 | . . . . . . 1 7 . . . . . . . . . . . . . . . . . . . . . . 2 Programmer 5 | . . . . . . . 1 . . . 1 . . . . . . . . . . . . . . . . . . 3 Hotshot 5 | . . . . . . . . . . . . . . . . . . . . . . . . . . . . . . 5 Striker 5 | . . . . . . . . . . . . . . . . . . . . . . . . . . . . . . 5 Executioner 3 | . . . . . . . . . . . . . . . . . . . . . . . . . . . . . . 3 Alpha 7 1 | . . . . . . . . . . . . . . . . . . . . . . . . . . . . . . 1 Scrapoid 2 | . . . . . . . . . . . . . . . . . . . . . . . . . . . . . . 2 Samaritan 1 | . . . . . . . . . . 1 . . . . . . . . . . . . . . . . . . . . Thug 1 | . . . . . . . . . . . . . . . 1 . . . . . . . . . . . . . . . Martyr 1 | . . . . . . . . . . . . . . . 1 . . . . . . . . . . . . . . . Best Kill Streak 19 | . 9 1 11 4 2 . 19 . 1 1 1 . . 2 . 1 . . . . 6 . . . . . 1 2 . 5 Combat Bots Only 9 | . 9 1 9 4 2 . 8 . . . 1 . . . . . . . . . 5 . . . . . . . . 5 Max Kills in Single Turn 8 | . 2 1 4 1 1 1 8 . 1 1 1 . . 1 1 1 . . . . 6 . . . . . 1 1 . 1 Gunslinging 1 | . . . 1 . . . . . . . . . . . . . . . . . . . . . . . . . . . Exploded 5 | . . . 3 . . . 4 . . . . . . . . . . . . . 5 . . . . . . . . . Melee 1 | . . . . . . . . . . . 1 . . . . . . . . . . . . . . . . . . . Uniques/NPCs Destroyed 1 | . . 1 . . . . . . . . . . . . . . . . . . . . . . . . . . . . YI-UF0 (-10/Mines) Combat | -11 -10 -10 -9 -9 -9 -9 -6 -6 -6 -6 -6 -6 -5 -5 -5 -5 -5 -5 -5 -4 -4 -4 -4 -4 -3 -3 -3 -2 -2 -2 -------- Run | Yrd Mat Min Mat Sto Rec Scr Fac Was Fac Low Low Zio Pro Fac Was Fac Upp Upp War Pro Fac Upp Upp Zhi Pro Res Tes Res Qua Frg Hostile Shots Fired 853 | . 78 30 107 98 10 . 205 . 53 . 4 . 4 5 . 4 3 . . 13 22 . . . 9 2 12 . 2 192 Missed 330 | . 21 10 28 31 1 . 64 . 34 . 2 . 2 5 . 2 1 . . 9 9 . . . 5 2 5 . 2 97 Hits 523 | . 57 20 79 67 9 . 141 . 19 . 2 . 2 . . 2 2 . . 4 13 . . . 4 . 7 . . 95 Melee 7 | . . . 7 . . . . . . . . . . . . . . . . . . . . . . . . . . . Projectile 516 | . 57 20 72 67 9 . 141 . 19 . 2 . 2 . . 2 2 . . 4 13 . . . 4 . 7 . . 95 AOE 8 | . . 8 . . . . . . . . . . . . . . . . . . . . . . . . . . . . Critical Strikes 24 | . . 1 4 5 . . 8 . . . . . . . 1 . . . . . . . . . . . . . . 5 Actively Blocked 3 | . . . . . . . . . . . . . . . . . . . . . . . . . . . . . . 3 Damage Taken 10290 | . 633 461 1338 944 140 . 3144 . 157 . 28 . . . 23 48 54 . . 76 276 . . . 82 . 158 . . 2728 Core 1384 | . 112 66 168 94 15 . 536 . 51 . . . . . . . . . . 14 2 . . . . . 67 . . 259 Absorbed by Shields 41 | . . . . . . . 10 . . . . . . . . . . . . . . . . . . . . . . 31 Redirected to Shielding 176 | . . . . . . . . . 10 . 18 . . . . . . . . . 16 . . . 41 . 15 . . 76 Regen/Repaired (Parts) 1818 | . . . 122 . . . . . . . . . . . 140 . . . 71 . . . . . . . . . . 1485 Core Remaining (%) 70 | 100 . 28 . . . 30 . . . . . . 30 . . . . . . 98 . . . . 99 . 94 . . 82 Volleys Fired 694 | . 78 13 65 60 8 1 49 . . . . . 3 3 13 . 9 9 1 . 21 . 8 . 3 17 28 18 7 280 Largest 2 | . 2 2 2 2 2 1 2 . . . . . 1 1 1 . 1 1 1 . 1 . 1 . 1 1 1 1 1 1 Hottest 150 | . 80 76 136 136 136 . 136 . . . . . 85 85 40 . 85 85 85 . 85 . 85 . 85 113 113 50 50 150 Shots Fired 938 | . 156 26 118 117 15 1 90 . . . . . 3 3 13 . 9 9 1 . 21 . 8 . 3 17 28 18 7 275 Gun 498 | . 156 26 52 . . . . . . . . . . . 13 . . . . . . . . . . . . . . 251 Cannon 417 | . . . 55 117 15 . 82 . . . . . 3 3 . . 9 9 1 . 18 . 8 . 3 17 28 18 7 24 Launcher 20 | . . . 11 . . . 8 . . . . . . . . . . . . . 1 . . . . . . . . . Special 3 | . . . . . . 1 . . . . . . . . . . . . . . 2 . . . . . . . . . Kinetic 357 | . 44 23 26 . . . . . . . . . . . 13 . . . . . . . . . . . . . . 251 Thermal 558 | . 112 3 81 117 15 . 82 . . . . . 3 3 . . 9 9 1 . 18 . 8 . 3 17 28 18 7 24 Explosive 20 | . . . 11 . . . 8 . . . . . . . . . . . . . 1 . . . . . . . . . Electromagnetic . | . . . . . . . . . . . . . . . . . . . . . . . . . . . . . . . Robot Hit Streak 36 | . 16 19 20 36 11 4 8 . . . . . . . 4 . . . . . 3 . . . . . 2 3 . 32 Robot Miss Streak 5 | . 5 2 4 3 1 . 5 . . . . . . . 2 . . . . . 1 . . . . . 1 2 . 2 Penetration Max 2 | . . . . . . . . . . . . . . . 1 . . . . . . . . . . . . . . 2 Secondary Targets 2 | . . . 2 . . . . . . . . . . . . . . . . . . . . . . . . . . . Max Gunslinging Chain 1 | . . . 1 . . . . . . . . . . . . . . . . . . . . . . . . . . . Shots Hit Robots 680 | . 109 19 77 91 34 28 56 . 1 1 3 . 2 5 12 2 . . . . 6 . . . . . 2 4 . 228 Core Hits 372 | . 46 6 50 29 4 6 94 . 1 . 1 . 1 1 6 1 . . . . 13 . . . . . 2 2 . 109 Critical Kills 22 | . . . . . . 3 1 . . . . . . . 1 . . . . . . . . . . . . . . 17 Critical Parts Destroyed 29 | . . . . . . 4 . . . . . . . 2 1 . . . . . . . . . . . . . . 22 Critical Strikes 61 | . . . 2 . . 7 1 . . 1 1 . . 2 7 . . . . . 1 . . . . . . . . 39 Burn 2 | . . . 2 . . . . . . . . . . . . . . . . . . . . . . . . . . . Meltdown 1 | . . . . . . . 1 . . . . . . . . . . . . . . . . . . . . . . . Destroy 46 | . . . . . . . . . . . . . . . 7 . . . . . . . . . . . . . . 39 Smash 9 | . . . . . . 7 . . . . . . . 2 . . . . . . . . . . . . . . . . Impale 2 | . . . . . . . . . . 1 1 . . . . . . . . . . . . . . . . . . . Sunder 1 | . . . . . . . . . . . . . . . . . . . . . 1 . . . . . . . . . Melee Attacks 138 | . . . . . 21 27 . . 10 2 6 7 3 17 3 12 2 1 1 . 2 . . . . . . 2 2 20 Impact 66 | . . . . . . 24 . . 2 . . 6 3 13 3 12 2 1 . . . . . . . . . . . . Slashing 22 | . . . . . . . . . . . . . . . . . . . . . . . . . . . . . 2 20 Piercing 21 | . . . . . . . . . 8 2 6 1 . 4 . . . . . . . . . . . . . . . . Entropic 5 | . . . . . . . . . . . . . . . . . . . 1 . 2 . . . . . . 2 . . Sneak Attacks 67 | . . . . . 21 27 . . 1 1 1 . . 3 3 2 . . . . 2 . . . . . . 1 . 5 Combat Hostiles 1 | . . . . . . . . . . . 1 . . . . . . . . . . . . . . . . . . . Follow-up Attacks . | . . . . . . . . . . . . . . . . . . . . . . . . . . . . . . . Damage Inflicted 23229 | . 1255 245 2803 1987 291 1211 4200 . 75 76 125 . 132 348 322 207 . . . . 914 . . . . . 127 276 . 8635 Guns 9795 | . 1255 245 608 . . . . . . . . . . . 114 . . . . . . . . . . . . . . 7573 Cannons 4579 | . . . 694 1987 291 . 1123 . . . . . . . . . . . . . 95 . . . . . 127 134 . 128 Explosions 5054 | . . . 1501 . . . 3077 . . . . . . . . . . . . . 476 . . . . . . . . . Melee 3801 | . . . . . . 1211 . . 75 76 125 . 132 348 208 207 . . . . 343 . . . . . . 142 . 934 Ramming . | . . . . . . . . . . . . . . . . . . . . . . . . . . . . . . . Kinetic 8577 | . 387 202 301 . . . . . . . . . . . 114 . . . . . . . . . . . . . . 7573 Thermal 6108 | . 868 43 1312 1987 291 . 1123 . . . . . . . . . . . . . 95 . . . . . 127 134 . 128 Explosive 4743 | . . . 1190 . . . 3077 . . . . . . . . . . . . . 476 . . . . . . . . . Electromagnetic . | . . . . . . . . . . . . . . . . . . . . . . . . . . . . . . . Impact 2106 | . . . . . . 1211 . . . . . . 132 348 208 207 . . . . . . . . . . . . . . Slashing 934 | . . . . . . . . . . . . . . . . . . . . . . . . . . . . . . 934 Piercing 276 | . . . . . . . . . 75 76 125 . . . . . . . . . . . . . . . . . . . Entropic 485 | . . . . . . . . . . . . . . . . . . . . . 343 . . . . . . 142 . . Highest Corruption 5 | . . . . 1 1 . 1 1 1 1 2 2 . . . . . . . 1 . . . . . . 1 . . 5 Average Corruption 1 | . . . . 1 1 . 1 1 1 1 1 2 . . . . . . . 1 . . . . . . 1 . . 3 Corruption Purged . | . . . . . . . . . . . . . . . . . . . . . . . . . . . . . . . Corruption Blocked . | . . . . . . . . . . . . . . . . . . . . . . . . . . . . . . . Effects 61 | . . . . 10 12 . 2 1 . 1 1 . . . . . . . . . . . . . . . . . . 34 Message Errors 15 | . . . . 4 3 . 1 1 . . . . . . . . . . . . . . . . . . . . . 6 Matter Fused 15 | . . . . 4 3 . 1 . . . . . . . . . . . . . . . . . . . . . . 7 Heat Flow Errors 8 | . . . . 1 2 . . . . . 1 . . . . . . . . . . . . . . . . . . 4 Energy Discharges 6 | . . . . . 4 . . . . 1 . . . . . . . . . . . . . . . . . . . 1 Parts Rejected 3 | . . . . . . . . . . . . . . . . . . . . . . . . . . . . . . 3 Data Loss (minor) 3 | . . . . . . . . . . . . . . . . . . . . . . . . . . . . . . 3 Data Loss (major) 4 | . . . . . . . . . . . . . . . . . . . . . . . . . . . . . . 4 Alerts 1 | . . . . . . . . . . . . . . . . . . . . . . . . . . . . . . 1 Weapon Failures 6 | . . . . 1 . . . . . . . . . . . . . . . . . . . . . . . . . 5 Overload Shots 4 | . . . . . . . . . . . . . . . . . . . . . . . . . . . . . . 4 Overflow Damage 1510 | . . . 166 17 . 304 52 . . 120 . . 69 232 67 52 . . . . 143 . . . . . . 116 . 172 Projectiles 29 | . . . . 17 . . 8 . . . . . . . . . . . . . . . . . . . . 4 . . Explosions 233 | . . . 166 . . . 44 . . . . . . . . . . . . . 23 . . . . . . . . . Melee 1248 | . . . . . . 304 . . . 120 . . 69 232 67 52 . . . . 120 . . . . . . 112 . 172 Knockbacks 3 | . . . . . . 2 . . . . . . . . 1 . . . . . . . . . . . . . . . Impact 2 | . . . . . . 1 . . . . . . . . 1 . . . . . . . . . . . . . . . Kinetic . | . . . . . . . . . . . . . . . . . . . . . . . . . . . . . . . Secondary 1 | . . . . . . 1 . . . . . . . . . . . . . . . . . . . . . . . . Self-Inflicted Damage 607 | . . . 252 . . . 347 . . . . . . . . . . . . . 8 . . . . . . . . . Shots 18 | . . . 5 . . . 12 . . . . . . . . . . . . . 1 . . . . . . . . . Rammed . | . . . . . . . . . . . . . . . . . . . . . . . . . . . . . . . Targets Rammed . | . . . . . . . . . . . . . . . . . . . . . . . . . . . . . . . Kicked . | . . . . . . . . . . . . . . . . . . . . . . . . . . . . . . . Crushed . | . . . . . . . . . . . . . . . . . . . . . . . . . . . . . . . Highest Temperature 346 | . 66 6 60 346 160 . . . 4 . 208 . 102 71 4 1 138 96 43 8 139 . 121 . 85 151 166 28 27 250 Average Temperature 43 | . 28 6 19 52 28 . . . 2 . 104 . 59 39 4 1 57 38 23 6 55 . 56 . 43 48 38 6 27 92 Received Heat Transfer 1827 | . 282 99 447 396 45 . 180 . 57 . . . . . . 21 12 . . . 27 . . . 9 . . . . 252 Effects 1 | . . . . 1 . . . . . . . . . . . . . . . . . . . . . . . . . . Matter Decay 1 | . . . . 1 . . . . . . . . . . . . . . . . . . . . . . . . . . Siege Activations . | . . . . . . . . . . . . . . . . . . . . . . . . . . . . . . . Martial Activations . | . . . . . . . . . . . . . . . . . . . . . . . . . . . . . . . Shielding Activations . | . . . . . . . . . . . . . . . . . . . . . . . . . . . . . . . Robots Disrupted . | . . . . . . . . . . . . . . . . . . . . . . . . . . . . . . . Combat Hostiles . | . . . . . . . . . . . . . . . . . . . . . . . . . . . . . . . Robots Corrupted 10 | . . . . . . 7 . . . . . . . 2 . 1 . . . . . . . . . . . . . . Combat Hostiles . | . . . . . . . . . . . . . . . . . . . . . . . . . . . . . . . Parts Fried 9 | . . . . . . 7 . . . . . . . 2 . . . . . . . . . . . . . . . . Impact Corruptions 25 | . . . . . . 15 . . . . . . 2 6 1 1 . . . . . . . . . . . . . . Robots Melted 2 | . . . . 1 . . 1 . . . . . . . . . . . . . . . . . . . . . . . Combat Hostiles 1 | . . . . 1 . . . . . . . . . . . . . . . . . . . . . . . . . . Parts Melted 21 | . 3 . 1 12 1 . 1 . . . . . . . . . . . . . . . . . . . . . . 3 Heat Transferred 10820 | . 1975 111 2333 3478 481 . 1998 . . . . . . . . . . . . . 111 . . . . . 111 111 . 111 Parts Sabotaged . | . . . . . . . . . . . . . . . . . . . . . . . . . . . . . . . Parts Stolen . | . . . . . . . . . . . . . . . . . . . . . . . . . . . . . . . Parts Stripped . | . . . . . . . . . . . . . . . . . . . . . . . . . . . . . . . Power Chain Reactions . | . . . . . . . . . . . . . . . . . . . . . . . . . . . . . . . Alert | -11 -10 -10 -9 -9 -9 -9 -6 -6 -6 -6 -6 -6 -5 -5 -5 -5 -5 -5 -5 -4 -4 -4 -4 -4 -3 -3 -3 -2 -2 -2 ------- Run | Yrd Mat Min Mat Sto Rec Scr Fac Was Fac Low Low Zio Pro Fac Was Fac Upp Upp War Pro Fac Upp Upp Zhi Pro Res Tes Res Qua Frg Maximum Alert Level 4 | . 1 . 2 2 . . 2 . . . . . . . . . . . . . 1 . . . . . . . . 4 Low Security (%) 68 | 100 91 100 77 45 100 . 61 100 100 . . . . 100 100 100 . . . . 56 . . . . 100 100 100 100 8 Level 1 16 | . 8 . 14 49 . . 27 . . . . . . . . . . . . . 43 . . . . . . . . 18 Level 2 7 | . . . 8 4 . . 10 . . . . . . . . . . . . . . . . . . . . . . 28 Level 3 4 | . . . . . . . . . . . . . . . . . . . . . . . . . . . . . . 24 Level 4 3 | . . . . . . . . . . . . . . . . . . . . . . . . . . . . . . 19 Level 5 . | . . . . . . . . . . . . . . . . . . . . . . . . . . . . . . . High Security . | . . . . . . . . . . . . . . . . . . . . . . . . . . . . . . . Max Security . | . . . . . . . . . . . . . . . . . . . . . . . . . . . . . . . Peak Influence 1346 | . 232 20 529 410 149 . 539 141 141 . . . . 160 64 99 . . . . 232 . . . . 76 82 45 39 1346 Initial 214 | . . 15 . 214 79 . . 141 63 . . . . 150 26 . . . . . 37 . . . . 40 30 17 14 6 Average 205 | . 106 1 125 209 43 . 188 120 40 . . . . 109 13 30 . . . . 110 . . . . 38 45 25 24 668 Influence Increases 7438 | . 581 20 1013 772 284 . 944 . 216 5 75 . 5 257 94 184 . . . 60 324 . . . 90 166 161 138 57 1992 Destroy 0b10 Robot/C 2860 | . 340 20 600 460 80 . 500 . . . 20 . . . . . . . . . 100 . . . . . . . . 740 Destroy 0b10 Robot/NC 350 | . 30 . 45 30 . . 80 . 5 5 . . 5 20 . 10 . . . . 20 . . . . . 5 15 . 80 Destroy Leader 648 | . 96 . 138 160 . . 102 . . . 10 . . 6 . 4 . . . . 10 . . . . . 2 . . 120 Allied During Kill 61 | . . . . . 10 . 51 . . . . . . . . . . . . . . . . . . . . . . . Successful Hack 430 | . 25 . 15 45 14 . . . 40 . . . . 29 . 32 . . . . 6 . . . . 43 26 6 . 149 Select Force Hacks 240 | . 30 . 30 . 180 . . . . . . . . . . . . . . . . . . . . . . . . . Disable Machine 390 | . . . 45 45 . . 90 . 15 . . . . . . . . . . . . . . . . 15 75 . 45 60 Anti-Garrison Action 150 | . . . . . . . . . . . . . . . . . . . . . . . . . . . . . . 150 Destroy Structure 749 | . . . 110 2 . . 106 . 6 . . . . 22 94 18 . . . . 68 . . . . 18 38 42 12 213 Advance Influence 150 | . . . . . . . . . . . . . . 150 . . . . . . . . . . . . . . . . Partial Spotted 225 | . . . . . . . 15 . 15 . . . . . . . . . . . 45 . . . . 15 15 30 . 90 Lose Combat Pursuer 1185 | . 60 . 30 30 . . . . 135 . 45 . . 30 . 120 . . . 60 75 . . . 90 75 . 45 . 390 Influence Decreases 6094 | . 540 61 504 1077 488 . 539 314 287 25 50 25 5 180 171 95 89 . . . 183 105 96 . 30 171 185 143 72 659 Entered New Map 1049 | . . 26 . 295 125 . . 264 28 8 . 25 . . 51 . 34 . . . 23 75 19 . . 20 25 14 12 5 Time Decay 4281 | . 500 35 434 612 363 . 326 50 100 17 50 . 5 180 40 95 55 . . . 160 30 77 . 30 139 160 129 60 634 Lost Part 340 | . 40 . 70 20 . . 180 . 10 . . . . . . . . . . . . . . . . . . . . 20 Lost Ally 125 | . . . . . . . 33 . . . . . . . 80 . . . . . . . . . . 12 . . . . Purge Threat 299 | . . . . 150 . . . . 149 . . . . . . . . . . . . . . . . . . . . . Squads Dispatched 62 | . 6 . 4 3 . . 7 . 5 . . . . 7 . 2 . . . . 7 . . . 1 4 1 3 2 10 Investigation 27 | . 1 . 2 . . . 1 . 5 . . . . 4 . 1 . . . . 4 . . . . 2 . 2 . 5 Extermination 10 | . . . . . . . 1 . . . . . . 2 . . . . . . 1 . . . . 2 1 1 1 1 Reinforcement 15 | . 5 . 2 . . . 1 . . . . . . 1 . 1 . . . . 2 . . . . . . . 1 2 Assault 3 | . . . . . . . . . . . . . . . . . . . . . . . . . 1 . . . . 2 Garrison 7 | . . . . 3 . . 4 . . . . . . . . . . . . . . . . . . . . . . . Intercept . | . . . . . . . . . . . . . . . . . . . . . . . . . . . . . . . Searches Triggered . | . . . . . . . . . . . . . . . . . . . . . . . . . . . . . . . Construction Impeded 1 | . . . . . . . 1 . . . . . . . . . . . . . . . . . . . . . . . Haulers Reinforced 1 | . . . . . . . . . . . . . . . . 1 . . . . . . . . . . . . . . Active Scanning Responses . | . . . . . . . . . . . . . . . . . . . . . . . . . . . . . . . Cargo Convoy Interrupts 1 | . . . . . . . 1 . . . . . . . . . . . . . . . . . . . . . . . Stealth | -11 -10 -10 -9 -9 -9 -9 -6 -6 -6 -6 -6 -6 -5 -5 -5 -5 -5 -5 -5 -4 -4 -4 -4 -4 -3 -3 -3 -2 -2 -2 --------- Run | Yrd Mat Min Mat Sto Rec Scr Fac Was Fac Low Low Zio Pro Fac Was Fac Upp Upp War Pro Fac Upp Upp Zhi Pro Res Tes Res Qua Frg Distress Signals 22 | . 3 1 3 4 . . 1 . . . . . . . . 1 . . . . . . . . . 2 . 2 . 5 Communications Jammed 14 | . . . . . . . . . . . . . . . . . . . . . . . . . . 5 2 6 . 1 Distress Signals 14 | . . . . . . . . . . . . . . . . . . . . . . . . . . 5 2 6 . 1 Times Spotted 430 | . 32 3 34 29 3 . 39 7 10 . 3 . 2 7 4 9 1 . 8 5 21 . 7 . 6 13 8 4 2 173 Peak Tracking Total 16 | . 8 2 12 4 2 . 8 6 8 . 3 . 2 5 2 6 1 . 8 7 8 . 4 . 7 5 6 5 1 16 Tactical Retreats 42 | . 2 . 1 2 . . . . 3 . 2 . . 1 . 2 . . . 1 3 . . . 2 2 . 3 . 18 Traps | -11 -10 -10 -9 -9 -9 -9 -6 -6 -6 -6 -6 -6 -5 -5 -5 -5 -5 -5 -5 -4 -4 -4 -4 -4 -3 -3 -3 -2 -2 -2 ------- Run | Yrd Mat Min Mat Sto Rec Scr Fac Was Fac Low Low Zio Pro Fac Was Fac Upp Upp War Pro Fac Upp Upp Zhi Pro Res Tes Res Qua Frg Traps Triggered 20 | . . . 1 7 . . 2 . . . . . . 4 . 2 . . . . 1 . . . . . 2 . . 1 Indirectly . | . . . . . . . . . . . . . . . . . . . . . . . . . . . . . . . Trap Hack Attempts . | . . . . . . . . . . . . . . . . . . . . . . . . . . . . . . . Triggered . | . . . . . . . . . . . . . . . . . . . . . . . . . . . . . . . Disarmed . | . . . . . . . . . . . . . . . . . . . . . . . . . . . . . . . Reprogrammed 5 | . . . . 5 . . . . . . . . . . . . . . . . . . . . . . . . . . Reused . | . . . . . . . . . . . . . . . . . . . . . . . . . . . . . . . Traps Extracted 5 | . . . . . . . . . . . . . . . . . . . 5 . . . . . . . . . . . Installed . | . . . . . . . . . . . . . . . . . . . . . . . . . . . . . . . Triggered . | . . . . . . . . . . . . . . . . . . . . . . . . . . . . . . . Most Traps Carried 5 | . . . . . . . . . . . . . . . . . . . 5 . . . . . . . . . . . Machines | -11 -10 -10 -9 -9 -9 -9 -6 -6 -6 -6 -6 -6 -5 -5 -5 -5 -5 -5 -5 -4 -4 -4 -4 -4 -3 -3 -3 -2 -2 -2 ---------- Run | Yrd Mat Min Mat Sto Rec Scr Fac Was Fac Low Low Zio Pro Fac Was Fac Upp Upp War Pro Fac Upp Upp Zhi Pro Res Tes Res Qua Frg Machines Disabled 29 | . . . 3 3 . . 6 . 1 . . . . . . . . . 1 . . . . . . 1 5 . 3 6 Max in Single Turn 3 | . . . 3 1 . . 2 . 1 . . . . . . . . . 1 . . . . . . 1 1 . 1 1 Garrison Access 7 | . . . . 1 . . . . 1 . . . . . . 1 . . . . . . . . . 1 1 1 . 1 Machines Repaired . | . . . . . . . . . . . . . . . . . . . . . . . . . . . . . . . Machines Dismantled . | . . . . . . . . . . . . . . . . . . . . . . . . . . . . . . . Machines Sabotaged . | . . . . . . . . . . . . . . . . . . . . . . . . . . . . . . . Overloaded Fab Kills . | . . . . . . . . . . . . . . . . . . . . . . . . . . . . . . . Hacking | -11 -10 -10 -9 -9 -9 -9 -6 -6 -6 -6 -6 -6 -5 -5 -5 -5 -5 -5 -5 -4 -4 -4 -4 -4 -3 -3 -3 -2 -2 -2 --------- Run | Yrd Mat Min Mat Sto Rec Scr Fac Was Fac Low Low Zio Pro Fac Was Fac Upp Upp War Pro Fac Upp Upp Zhi Pro Res Tes Res Qua Frg Machines Accessed 111 | . 5 . 5 10 11 2 5 . 10 . . . . 8 . 6 . 1 6 . 6 . . 4 . 8 5 6 1 12 Terminals 47 | . 4 . 2 8 5 . . . 4 . . . . 3 . 3 . . . . 2 . . . . 4 3 3 1 5 Fabricators 10 | . . . . . . . 3 . 1 . . . . 1 . 1 . . . . . . . . . . . . . 4 Repair Stations 2 | . . . 1 1 . . . . . . . . . . . . . . . . . . . . . . . . . . Recycling Units 23 | . 1 . 1 . 6 . 1 . 4 . . . . 3 . . . . . . 3 . . . . 2 . 1 . 1 Scanalyzers 8 | . . . 1 . . . . . . . . . . 1 . 1 . . . . 1 . . . . 1 1 1 . 1 Garrison Access 8 | . . . . 1 . . 1 . 1 . . . . . . 1 . . . . . . . . . 1 1 1 . 1 Total Hacks 339 | . 12 . 14 36 24 20 7 . 29 . . . . 23 . 25 . 1 13 . 15 . . 17 . 30 18 13 2 40 Successful 218 | . 11 . 8 21 13 20 2 . 18 . . . . 13 . 14 . 1 13 . 10 . . 17 . 18 10 5 1 23 Failed 120 | . 1 . 6 15 11 . 5 . 11 . . . . 10 . 10 . . . . 5 . . . . 12 8 8 1 17 Catastrophic 18 | . . . 1 1 . . 2 . 1 . . . . 3 . . . . . . 2 . . . . 2 2 1 . 3 Database Lockouts 1 | . . . . . . . . . . . . . . . . 1 . . . . . . . . . . . . . . Manual 130 | . 7 . 5 28 20 . 2 . 14 . . . . 14 . . . . . . 6 . . . . 16 4 1 . 13 Terminals 194 | . 11 . 8 29 17 . . . 17 . . . . 11 . 18 . . . . 9 . . . . 25 13 10 2 24 Fabricators 27 | . . . . . . . 5 . 4 . . . . 3 . 3 . . . . . . . . . . . . . 12 Repair Stations 5 | . . . 3 2 . . . . . . . . . . . . . . . . . . . . . . . . . . Recycling Units 29 | . 1 . 1 . 7 . 1 . 7 . . . . 4 . . . . . . 3 . . . . 3 . 1 . 1 Scanalyzers 20 | . . . 2 . . . . . . . . . . 5 . 3 . . . . 3 . . . . 1 4 1 . 1 Garrison Access 13 | . . . . 5 . . 1 . 1 . . . . . . 1 . . . . . . . . . 1 1 1 . 2 Terminal Hacks 126 | . 6 . 2 10 3 20 . . 4 . . . . 4 . 11 . 1 13 . 4 . . 17 . 10 7 3 1 10 Record 31 | . . . . . . 20 . . . . . . . . . . . . 6 . . . . 5 . . . . . . Part Schematic 7 | . . . . . . . . . . . . . . 1 . 1 . . . . . . . 4 . 1 . . . . Robot Analysis 7 | . . . . 1 . . . . . . . . . . . . . . . . . . . 4 . . . . . 2 Prototype ID Bank 19 | . 1 . . 1 2 . . . . . . . . 1 . 2 . . 5 . 1 . . 4 . . 1 . . 1 Open Door 6 | . . . . 2 . . . . . . . . . . . . . 1 2 . . . . . . . . 1 . . Branch Access Points 6 | . . . 1 . . . . . 1 . . . . 1 . 1 . . . . 1 . . . . 1 . . . . Emergency Access Points 3 | . 1 . . 1 . . . . . . . . . . . . . . . . . . . . . . . . . 1 Machine Index 1 | . . . . . . . . . . . . . . . . . . . . . . . . . . . . . . 1 Terminal Index 2 | . 1 . . . . . . . . . . . . . . . . . . . . . . . . 1 . . . . Fabricator Index 2 | . . . . . . . . . . . . . . . . 1 . . . . . . . . . . 1 . . . Repair Station Index 1 | . . . . . . . . . . . . . . . . 1 . . . . . . . . . . . . . . Scanalyzer Index 2 | . . . . . . . . . 1 . . . . 1 . . . . . . . . . . . . . . . . Unreport Threat 2 | . . . . 1 . . . . 1 . . . . . . . . . . . . . . . . . . . . . Locate Traps 10 | . 3 . . 2 . . . . . . . . . . . 1 . . . . . . . . . 2 1 . . 1 Reprogram Traps 1 | . . . . 1 . . . . . . . . . . . . . . . . . . . . . . . . . . Dispatch Records 1 | . . . . . . . . . . . . . . . . . . . . . . . . . . . . . . 1 Maintenance Status 2 | . . . . . . . . . . . . . . . . . . . . . . . . . . 1 . 1 . . Security Status 4 | . . . . . . . . . . . . . . . . . . . . . . . . . . . 1 1 . 2 Surveillance Status 2 | . . . . . . . . . . . . . . . . 1 . . . . . . . . . . 1 . . . Patrol Status 3 | . . . . . . . . . . . . . . . . . . . . . . . . . . 1 1 . . 1 Transport Status 2 | . . . . . . . . . . . . . . . . 1 . . . . . . . . . . 1 . . . Recall Investigation 1 | . . . . . . . . . . . . . . . . . . . . . . . . . . 1 . . . . Recall Reinforcements 1 | . . . . . . . . . 1 . . . . . . . . . . . . . . . . . . . . . Hauler Manifests 2 | . . . 1 . . . . . . . . . . . . 1 . . . . . . . . . . . . . . Registered Components 2 | . . . . . . . . . . . . . . . . 1 . . . . . . . . . 1 . . . . Registered Prototypes 2 | . . . . . . . . . . . . . . . . . . . . . 1 . . . . . . . 1 . Zone Layout 4 | . . . . 1 1 . . . . . . . . . . . . . . . 1 . . . . 1 . . . . Fabricator Hacks 10 | . . . . . . . 1 . 1 . . . . 1 . 1 . . . . . . . . . . . . . 6 Network Status 4 | . . . . . . . 1 . 1 . . . . 1 . 1 . . . . . . . . . . . . . . Load Schematic 3 | . . . . . . . . . . . . . . . . . . . . . . . . . . . . . . 3 Build 3 | . . . . . . . . . . . . . . . . . . . . . . . . . . . . . . 3 Repair Station Hacks 3 | . . . 2 1 . . . . . . . . . . . . . . . . . . . . . . . . . . Scan Component 2 | . . . 1 1 . . . . . . . . . . . . . . . . . . . . . . . . . . Repair 1 | . . . 1 . . . . . . . . . . . . . . . . . . . . . . . . . . . Recycling Unit Hacks 1 | . . . . . . . . . 1 . . . . . . . . . . . . . . . . . . . . . Retrieve Components 1 | . . . . . . . . . 1 . . . . . . . . . . . . . . . . . . . . . Scanalyzer 10 | . . . 1 . . . . . . . . . . 2 . 1 . . . . 3 . . . . 1 1 . . 1 Retrieve Study 10 | . . . 1 . . . . . . . . . . 2 . 1 . . . . 3 . . . . 1 1 . . 1 Garrison Access Hacks 6 | . . . . 1 . . . . 1 . . . . . . 1 . . . . . . . . . 1 1 1 . . Seal Access 6 | . . . . 1 . . . . 1 . . . . . . 1 . . . . . . . . . 1 1 1 . . Unauthorized Hacks 62 | . 5 . 3 9 10 . 1 . 11 . . . . 6 . . . . . . 3 . . . . 6 1 1 . 6 Terminals 32 | . 4 . 2 9 4 . . . 4 . . . . 1 . . . . . . . . . . . 4 . . . 4 Track 5 | . . . . 1 . . . . 1 . . . . . . . . . . . . . . . . . . . . 3 Assimilate 2 | . . . . . . . . . . . . . . . . . . . . . . . . . . 2 . . . . Botnet 6 | . . . . 2 . . . . 2 . . . . 1 . . . . . . . . . . . 1 . . . . Operators 4 | . . . . 1 . . . . 1 . . . . . . . . . . . . . . . . 1 . . . 1 Skim 15 | . 4 . 2 5 4 . . . . . . . . . . . . . . . . . . . . . . . . . Fabricators 5 | . . . . . . . . . 2 . . . . 2 . . . . . . . . . . . . . . . 1 Prioritize 1 | . . . . . . . . . . . . . . . . . . . . . . . . . . . . . . 1 Liberate 2 | . . . . . . . . . 1 . . . . 1 . . . . . . . . . . . . . . . . Haulers 2 | . . . . . . . . . 1 . . . . 1 . . . . . . . . . . . . . . . . Repair Stations . | . . . . . . . . . . . . . . . . . . . . . . . . . . . . . . . Recycling Units 24 | . 1 . 1 . 6 . 1 . 5 . . . . 3 . . . . . . 3 . . . . 2 . 1 . 1 Recyclers 1 | . . . . . . . . . 1 . . . . . . . . . . . . . . . . . . . . . Tunnel 8 | . 1 . 1 . 6 . . . . . . . . . . . . . . . . . . . . . . . . . Fedlink 15 | . . . . . . . 1 . 4 . . . . 3 . . . . . . 3 . . . . 2 . 1 . 1 Scanalyzers 1 | . . . . . . . . . . . . . . . . . . . . . . . . . . . 1 . . . Researchers 1 | . . . . . . . . . . . . . . . . . . . . . . . . . . . 1 . . . Garrison Access . | . . . . . . . . . . . . . . . . . . . . . . . . . . . . . . . Data Cores Recovered 1 | . . . . . . . . . . . . . . . . . . . . . . . . . . . . . . 1 Used . | . . . . . . . . . . . . . . . . . . . . . . . . . . . . . . . Hacking Detections 62 | . 4 . 2 10 5 . 4 . 4 . . . . 4 . 5 . . . . 2 . . . . 4 4 4 1 9 Full Trace Events 8 | . . . . . 2 . . . 1 . . . . 1 . . . . . . . . . . . . . 1 . 3 Feedback Events . | . . . . . . . . . . . . . . . . . . . . . . . . . . . . . . . Feedback Blocked . | . . . . . . . . . . . . . . . . . . . . . . . . . . . . . . . Robot Schematics Acquired 4 | . . . . . . . . . . . . 4 . . . . . . . . . . . . . . . . . . Robots Built . | . . . . . . . . . . . . . . . . . . . . . . . . . . . . . . . Authchips . | . . . . . . . . . . . . . . . . . . . . . . . . . . . . . . . Time . | . . . . . . . . . . . . . . . . . . . . . . . . . . . . . . . Total Robot Build Rating . | . . . . . . . . . . . . . . . . . . . . . . . . . . . . . . . Part Schematics Acquired 20 | . . . . . . . . . . . . 13 . 1 . 1 . . . . . . . 4 . 1 . . . . Parts Built 3 | . . . . . . . . . . . . . . . . . . . . . . . . . . . . . . 3 Authchips . | . . . . . . . . . . . . . . . . . . . . . . . . . . . . . . . Time 186 | . . . . . . . . . . . . . . . . . . . . . . . . . . . . . . 186 Total Part Build Rating 21 | . . . . . . . . . . . . . . . . . . . . . . . . . . . . . . 21 Part Studies Acquired 10 | . . . 1 . . . . . . . . . . 2 . 1 . . . . 3 . . . . 1 1 . . 1 Parts Repaired 1 | . . . 1 . . . . . . . . . . . . . . . . . . . . . . . . . . . Time 26 | . . . 26 . . . . . . . . . . . . . . . . . . . . . . . . . . . Parts Recycled . | . . . . . . . . . . . . . . . . . . . . . . . . . . . . . . . Recycled Matter . | . . . . . . . . . . . . . . . . . . . . . . . . . . . . . . . Retrieved Matter . | . . . . . . . . . . . . . . . . . . . . . . . . . . . . . . . Retrieved Components 3 | . . . . . . . . . 3 . . . . . . . . . . . . . . . . . . . . . Parts Scanalyzed . | . . . . . . . . . . . . . . . . . . . . . . . . . . . . . . . Part Schematics Acquired . | . . . . . . . . . . . . . . . . . . . . . . . . . . . . . . . Parts Damaged . | . . . . . . . . . . . . . . . . . . . . . . . . . . . . . . . Bothacking | -11 -10 -10 -9 -9 -9 -9 -6 -6 -6 -6 -6 -6 -5 -5 -5 -5 -5 -5 -5 -4 -4 -4 -4 -4 -3 -3 -3 -2 -2 -2 ------------ Run | Yrd Mat Min Mat Sto Rec Scr Fac Was Fac Low Low Zio Pro Fac Was Fac Upp Upp War Pro Fac Upp Upp Zhi Pro Res Tes Res Qua Frg Used RIF Installer . | . . . . . . . . . . . . . . . . . . . . . . . . . . . . . . . Robots Hacked 3 | . . . . . . 3 . . . . . . . . . . . . . . . . . . . . . . . . Non-combat . | . . . . . . . . . . . . . . . . . . . . . . . . . . . . . . . Combat 3 | . . . . . . 3 . . . . . . . . . . . . . . . . . . . . . . . . Robot Hacks Applied 3 | . . . . . . 3 . . . . . . . . . . . . . . . . . . . . . . . . parse_system 3 | . . . . . . 3 . . . . . . . . . . . . . . . . . . . . . . . . Relay Couplers Released 2 | . . . . . . . . . . . . . . . . . . . . . . . . . . . . . . 2 Machine Destruction 2 | . . . . . . . . . . . . . . . . . . . . . . . . . . . . . . 2 Fabnet Peak Effective % . | . . . . . . . . . . . . . . . . . . . . . . . . . . . . . . . Robots Rewired 14 | . . . . . 8 . . . . . . . . . . . . . 5 . 1 . . . . . . . . . Allies Hacked 1 | . . . . . . . . . . . . . . . . . . . . . . . . . . 1 . . . . Hacks Repelled . | . . . . . . . . . . . . . . . . . . . . . . . . . . . . . . . Allies | -11 -10 -10 -9 -9 -9 -9 -6 -6 -6 -6 -6 -6 -5 -5 -5 -5 -5 -5 -5 -4 -4 -4 -4 -4 -3 -3 -3 -2 -2 -2 -------- Run | Yrd Mat Min Mat Sto Rec Scr Fac Was Fac Low Low Zio Pro Fac Was Fac Upp Upp War Pro Fac Upp Upp Zhi Pro Res Tes Res Qua Frg Total Allies 47 | . . . . 10 8 1 . . . . . . . . 20 . . . 5 . 1 . . . . 2 . . . . Largest Group 20 | . . . . 10 18 18 3 . . . . . . . 20 . . . 5 . 1 . . . . 1 . . . . Highest-Rated Group 733 | . . . . 88 212 212 100 . . . . . . . 733 . . . 259 . 42 . . . . 45 . . . . Highest-Rated Ally 64 | . . . . 16 34 63 63 . . . . . . . 50 . . . 64 . 42 . . . . 45 . . . . Total Orders 20 | . . . . . 2 15 1 . . . . . . . . . . . 1 . 1 . . . . . . . . . STAY 14 | . . . . . 1 10 1 . . . . . . . . . . . 1 . 1 . . . . . . . . . FOLLOW 6 | . . . . . 1 5 . . . . . . . . . . . . . . . . . . . . . . . . Ally Attacks 168 | . . . . . . . 42 . . . . . . . 126 . . . . . . . . . . . . . . . Total Damage 6766 | . . . . . . . 1233 . . . . . . . 5533 . . . . . . . . . . . . . . . Kills 21 | . . . . . . . 12 . . . . . . . 9 . . . . . . . . . . . . . . . Allies Corrupted 7 | . . . . . . 7 . . . . . . . . . . . . . . . . . . . . . . . . Allies Melted 2 | . . . . . . . . . . . . . . . . 1 . . . . . . . . . . . . . 1 Intel | -11 -10 -10 -9 -9 -9 -9 -6 -6 -6 -6 -6 -6 -5 -5 -5 -5 -5 -5 -5 -4 -4 -4 -4 -4 -3 -3 -3 -2 -2 -2 ------- Run | Yrd Mat Min Mat Sto Rec Scr Fac Was Fac Low Low Zio Pro Fac Was Fac Upp Upp War Pro Fac Upp Upp Zhi Pro Res Tes Res Qua Frg Active Infowar (turns) 7681 | . . . . . . . 430 86 167 276 162 340 125 367 64 227 584 156 469 55 324 77 392 61 86 294 321 262 122 2234 Optics 2003 | . . . . . . . . 86 46 . . . . . . . . . . . . . . . . . . . . 1871 Sensors 5873 | . . . . . . . . . 57 276 162 340 121 367 64 227 584 156 244 55 313 77 392 61 71 294 321 262 122 1307 A.S.S. 926 | . . . . . . . . . . . . . . . . . . . . . . . . . . . . . . 926 Terrain 1516 | . . . . . . . . . . . . . . . . . 249 . . . . . . . . 292 254 251 122 348 Structural 2208 | . . . . . . . 430 . 166 82 4 . 4 140 64 225 287 140 299 . 11 . 300 41 15 . . . . . Cloaking 102 | . . . . . . . . . . . . . . . . . . . 1 . . . . . . . 67 11 . 23 Jamming 1587 | . . . . . . . . . . . . . . . . . . . . . . . . . . 191 321 262 122 691 Robot Analysis Total 7 | . . . . 1 . . . . . . . . . . . . . . . . . . . 4 . . . . . 2 Derelict Logs Recovered 4 | . . 1 . . . . . . . 1 . . 1 . . . 1 . . . . . . . . . . . . . Drone Launches . | . . . . . . . . . . . . . . . . . . . . . . . . . . . . . . . Drone Recoveries . | . . . . . . . . . . . . . . . . . . . . . . . . . . . . . . . Exploration | -11 -10 -10 -9 -9 -9 -9 -6 -6 -6 -6 -6 -6 -5 -5 -5 -5 -5 -5 -5 -4 -4 -4 -4 -4 -3 -3 -3 -2 -2 -2 ------------- Run | Yrd Mat Min Mat Sto Rec Scr Fac Was Fac Low Low Zio Pro Fac Was Fac Upp Upp War Pro Fac Upp Upp Zhi Pro Res Tes Res Qua Frg Turns Passed 21742 | 29 1479 572 1437 2011 1786 5983 902 101 218 276 162 402 138 367 169 242 584 168 489 55 324 77 392 61 86 294 321 262 122 2233 Spaces Moved 21347 | 1 635 261 570 672 684 2696 323 158 533 427 425 1403 353 836 348 513 479 331 835 190 852 287 482 148 264 674 683 623 359 4302 Core 215 | . . . . . . 215 . . . . . . . . . . . . . . . . . . . . . . . . Treads 2775 | . 65 . 38 672 684 1220 96 . . . . . . . . . . . . . . . . . . . . . . . Legs . | . . . . . . . . . . . . . . . . . . . . . . . . . . . . . . . Wheels 2849 | 1 570 261 532 . . 1261 224 . . . . . . . . . . . . . . . . . . . . . . . Hover . | . . . . . . . . . . . . . . . . . . . . . . . . . . . . . . . Flight 15508 | . . . . . . . 3 158 533 427 425 1403 353 836 348 513 479 331 835 190 852 287 482 148 264 674 683 623 359 4302 Fastest Speed 13 | 100 100 175 175 240 240 50 130 26 26 26 26 26 26 24 29 29 29 29 26 20 16 26 16 26 16 26 26 25 13 23 Average Speed 77 | 100 178 197 190 240 240 210 211 30 27 26 26 26 26 27 29 29 29 29 28 25 25 26 25 26 25 26 26 25 23 25 Slowest Speed 298 | 100 240 215 240 240 240 240 298 164 30 26 26 26 26 29 29 29 29 29 29 26 27 26 26 26 26 26 27 25 25 31 Overloaded Moves 44 | . . . . . . . . . . . . . . . . . . . . 12 8 . 3 . 8 . . . 13 . Propulsion Burnouts . | . . . . . . . . . . . . . . . . . . . . . . . . . . . . . . . Robots Hopped 31 | . . . . . . . . . 1 . . . . 7 . 2 . . . . 2 . . . . 6 4 4 . 5 Potential Cave-ins . | . . . . . . . . . . . . . . . . . . . . . . . . . . . . . . . Cave-ins Triggered . | . . . . . . . . . . . . . . . . . . . . . . . . . . . . . . . Exploration Rate (%) 56 | 2 97 65 55 86 95 88 11 100 15 63 65 85 55 28 95 21 63 55 89 42 25 57 61 60 49 30 68 20 42 63 Regions Visited 30 Branch Regions 19 Pre-discovered Areas 23 | . 1 1 1 2 6 4 . . 1 . . 3 1 . . . . . . . . . . 3 . . . . . . Known Exits Taken 21 | . . . 1 . . 1 . . 1 1 1 1 1 . . 1 1 1 1 1 1 1 1 1 1 1 1 1 1 . Unknown Exits Taken 5 | 1 1 1 . 1 1 . . . . . . . . . . . . . . . . . . . . . . . . . Scrap Searched 29 | . . 1 . . . 10 . . . 2 1 4 2 . . . 3 1 . 1 . 2 . . 2 . . . . . Spaces Dug 167 | . . . 9 . . . . . 6 1 2 . 4 11 . 9 11 10 1 . 15 . 8 . 3 9 12 11 4 41 Terrain Destroyed 478 | . . . 141 . . . 122 . 6 1 2 . 4 11 . 9 11 10 1 . 35 . 8 . 3 9 19 15 4 67 Melee 43 | . . . . . . . . . 6 1 2 . 1 8 . 9 2 1 . . . . . . . . . . 1 12 Projectile 152 | . . . . . . . . . . . . . 3 3 . . 9 9 1 . 15 . 8 . 3 9 19 15 3 55 AOE 283 | . . . 141 . . . 122 . . . . . . . . . . . . . 20 . . . . . . . . . Terrain Rammed . | . . . . . . . . . . . . . . . . . . . . . . . . . . . . . . . Walls Destroyed . | . . . . . . . . . . . . . . . . . . . . . . . . . . . . . . . Machines Disabled . | . . . . . . . . . . . . . . . . . . . . . . . . . . . . . . . Actions | -11 -10 -10 -9 -9 -9 -9 -6 -6 -6 -6 -6 -6 -5 -5 -5 -5 -5 -5 -5 -4 -4 -4 -4 -4 -3 -3 -3 -2 -2 -2 --------- Run | Yrd Mat Min Mat Sto Rec Scr Fac Was Fac Low Low Zio Pro Fac Was Fac Upp Upp War Pro Fac Upp Upp Zhi Pro Res Tes Res Qua Frg Total 25518 | 29 828 291 803 962 806 2970 444 210 587 585 460 1427 385 937 399 590 911 392 1086 194 925 288 739 169 277 768 787 704 386 5179 Wait 2545 | 24 84 7 98 171 82 133 22 38 21 156 20 . 15 34 23 36 417 49 209 4 28 . 249 6 9 73 60 52 9 416 Move 21260 | . 634 260 569 671 683 2695 323 157 530 426 424 1402 352 823 347 508 478 330 834 189 847 286 481 147 263 661 674 614 358 4294 Hop 28 | . . . . . . . . . 1 . . . . 6 . 2 . . . . 2 . . . . 6 4 4 . 3 Pick Up 160 | . 16 4 21 12 . 50 7 2 7 . 1 2 1 3 4 . 1 1 1 . 4 . . 2 . 3 3 2 2 11 Fast Attach 108 | . 3 1 9 5 1 10 4 3 7 . 3 5 . 6 . . . . 9 1 2 1 . 6 . . 6 1 1 24 Attach 62 | 2 5 1 12 2 . 2 14 7 1 . . . . 4 2 . . . 1 . 3 . . . . 2 . 3 . 1 Detach 8 | . . . . 1 . . 2 . . . . 1 . 1 . . . . . . 2 . . . . . . . 1 . Swap 121 | 1 2 2 10 9 5 8 12 . 3 1 4 4 10 4 3 2 3 1 2 . 9 . 1 1 2 4 4 5 1 8 Drop 221 | 2 6 3 19 19 6 44 5 3 9 . 2 7 1 6 4 . 1 1 10 . 4 1 . 7 . 2 8 4 5 42 Fire 694 | . 78 13 65 60 8 1 49 . . . . . 3 3 13 . 9 9 1 . 21 . 8 . 3 17 28 18 7 280 Melee 134 | . . . . . 21 27 . . 8 2 6 6 3 17 3 12 2 1 1 . 2 . . . . . . 1 2 20 Ram . | . . . . . . . . . . . . . . . . . . . . . . . . . . . . . . . Kick . | . . . . . . . . . . . . . . . . . . . . . . . . . . . . . . . Crush . | . . . . . . . . . . . . . . . . . . . . . . . . . . . . . . . Escape Stasis 88 | . . . . 12 . . 6 . . . . . . 30 . 30 . . . . . . . . . . . . . 10 Rewire 19 | . . . . . . . . . . . . . . . . . . . 18 . 1 . . . . . . . . . Trap . | . . . . . . . . . . . . . . . . . . . . . . . . . . . . . . . Miscellaneous 70 | . . . . . . . . . . . . . . . . . . . . . . . . . . . . . . 70 Route ------- -11/Scrapyard -10/Materials (discovered 5 exits: *Mat x3 / [*Min] / [*Sub]) -10/Mines (discovered 2 exits: *Mat x2) -9/Materials (discovered 5 exits: [*Mat] / *Min x2 / *Sto x2) -9/Storage (discovered 2 exits: [*Mat] / *Rec) -9/Recycling (discovered 2 exits: [*Fac] / *Scr) -9/Scraptown (discovered 2 exits: *Fac x2) -6/Factory (discovered 6 exits: Fac x4 / Low x2) -6/Waste -6/Factory (discovered 5 exits: *Fac x3 / *Low x2) -6/Lower Caves -6/Lower Caves (discovered 2 exits: *Fac / *Zio) -6/Zion -5/Proximity Caves -5/Factory (discovered 3 exits: Fac / *Upp x2) -5/Waste -5/Factory (discovered 2 exits: *Upp x2) -5/Upper Caves -5/Upper Caves -5/Warlord -4/Proximity Caves -4/Factory (discovered 6 exits: Res / *Upp x2 / Ext x2 / Arm) -4/Upper Caves -4/Upper Caves -4/Zhirov -3/Proximity Caves -3/Research (discovered 2 exits: *Tes x2) -3/Testing -2/Research -2/Quarantine (discovered 3 exits: [*Acc] / *Sec / *Frg) -2/Protoforge 0bPrime History --------- Turn | Location | Event 30 | -11/Scrapyard | Discovered new exit (range 0) 30 | -11/Scrapyard | Entered Materials 100 | -10/Materials | Discovered new exit (range 15) 317 | -10/Materials | Build established: Mutant 430 | -10/Materials | Destroyed 9 combat bots 924 | -10/Materials | Discovered new exit (range 16) 1140 | -10/Materials | Discovered new exit (range 12) 1369 | -10/Materials | Discovered new exit (range 13) 1407 | -10/Materials | Discovered new exit (range 8) 1509 | -10/Materials | Entered Mines 1526 | -10/Mines | Core integrity fell below 50% 1707 | -10/Mines | Destroyed YI-UF0 1932 | -10/Mines | Discovered new exit (range 5) 2027 | -10/Mines | Learned location of Zion (-6) 2050 | -10/Mines | Discovered new exit (range 6) 2081 | -10/Mines | Entered Materials 2081 | -9/Materials | Evolved 2 slots: Propulsion x1, Utility x1 2113 | -9/Materials | Build established: Scavenger-Mutant 2563 | -9/Materials | Repaired Lgt. Treads 2765 | -9/Materials | Build established: Mutant 3022 | -9/Materials | Discovered new exit (range 15) 3224 | -9/Materials | Discovered new exit (range 11) 3282 | -9/Materials | Discovered new exit (range 5) 3356 | -9/Materials | Identified exit to Mines 3356 | -9/Materials | Identified exit to Storage 3438 | -9/Materials | Lost 6 parts (1p3n1u1w) 3439 | -9/Materials | Destroyed 9 combat bots 3518 | -9/Materials | Entered Storage 3677 | -9/Storage | Build established: Scavenger-Mutant 4352 | -9/Storage | Discovered new exit (range 19) 4416 | -9/Storage | Build established: Mutant 4447 | -9/Storage | Loaded intel: 14 trap records 4477 | -9/Storage | Found Prototype Launcher 4477 | -9/Storage | Identified Scatter Rocket Array 4478 | -9/Storage | Learned Storage trap positions 4510 | -9/Storage | Learned 2 Materials zone layouts 4513 | -9/Storage | Learned location of Recycling (-9) 4518 | -9/Storage | Learned location of 3 exits from Materials 4534 | -9/Storage | Learned location of Mines (-9) 4575 | -9/Storage | Garrison activated, responded to threat 4905 | -9/Storage | Core integrity fell below 50% 5268 | -9/Storage | Build established: Scavenger-Mutant 5321 | -9/Storage | Assisted by bots powering up and referring to "LRC-V3" 5496 | -9/Storage | Used back door to open Recycling access 5496 | -9/Storage | Discovered new exit (range 4) 5529 | -9/Storage | Entered Recycling 5529 | -9/Recycling | Accompanied by 10 allies 5616 | -9/Recycling | Build established: Commander-Mutant 6012 | -9/Recycling | Discovered new exit (range 15) 6217 | -9/Recycling | Scanned before Scraplab entrance 7243 | -9/Recycling | Entered Scraplab 7262 | -9/Recycling | Discovered new exit (range 3) 7315 | -9/Recycling | Entered Scraptown 7315 | -9/Scraptown | Accompanied by 18 allies 7315 | -9/Scraptown | System corruption cleaned by C-Scrubber 7451 | -9/Scraptown | Heard Great Nut preacher, LISTEN AND RECITE! 7643 | -9/Scraptown | Visited Awakened 7686 | -9/Scraptown | Visited Spacefarers 7717 | -9/Scraptown | Visited Red Mages 7756 | -9/Scraptown | Visited Symbiants 7782 | -9/Scraptown | Visited TADAMA 8198 | -9/Scraptown | Discovered new exit (range 11) 8381 | -9/Scraptown | Visited Fellowship of the Rings 8582 | -9/Scraptown | Murdered 3 allies 8807 | -9/Scraptown | Murdered 7 allies 8886 | -9/Scraptown | Visited Bundlers 9018 | -9/Scraptown | Visited UFD Registry 9018 | -9/Scraptown | Registered with UFD as "Wirecycle" 9100 | -9/Scraptown | Visited Cartography Club 9125 | -9/Scraptown | Build established: Mutant 9138 | -9/Scraptown | Visited Botcube Research 9177 | -9/Scraptown | Visited Abandonware Association 9203 | -9/Scraptown | Learned abandonware demo "REPAIR.EXE" 9263 | -9/Scraptown | Visited Curators Association 9347 | -9/Scraptown | Visited Infowarlord's Domain 9362 | -9/Scraptown | Found Spectral Analyzer 9416 | -9/Scraptown | Visited DA-N13 Charitable Foundation 9425 | -9/Scraptown | Found DCF Scrap (31 items) 9501 | -9/Scraptown | Visited Scrapoid Pod Storage 9514 | -9/Scraptown | Found Scrapoid Pod 9561 | -9/Scraptown | Visited Derelict Rescue Squad 9621 | -9/Scraptown | Visited Observation Area 9807 | -9/Scraptown | Found Surveybot 17 Chip 9844 | -9/Scraptown | Learned location of Proximity Caves (-6) 9844 | -9/Scraptown | Learned location of Cetus (-4) 9844 | -9/Scraptown | Learned 8 Materials zone layouts 9844 | -9/Scraptown | Learned 12 Materials zone layouts 9844 | -9/Scraptown | Learned 24 Factory zone layouts 9844 | -9/Scraptown | Learned 4 Recycling zone layouts 9844 | -9/Scraptown | Learned 16 Lower Caves zone layouts 9844 | -9/Scraptown | Learned Materials emergency access door positions 9844 | -9/Scraptown | Learned location of 1 exit from Factory 9844 | -9/Scraptown | Learned location of 3 exits from Factory 9844 | -9/Scraptown | Learned location of 1 exit from Lower Caves 9844 | -9/Scraptown | Identified exit to Factory 9862 | -9/Scraptown | Found Deep Structural Scanner 10371 | -9/Scraptown | Found Botcube 11955 | -9/Scraptown | Found Scrap Suit 12319 | -9/Scraptown | Botcube activated 12339 | -9/Scraptown | Botcube completed mutation into treaded form, armed with 1 gun, 1 cannon. 12549 | -9/Scraptown | Attached CPS modules to *Pebble. 12798 | -9/Scraptown | Found DRS Beacon 13183 | -9/Scraptown | Met Optimus 13183 | -9/Scraptown | Accepted into 0bPrime 13298 | -9/Scraptown | Entered Factory 13298 | -6/Factory | Accompanied by 3 allies 13298 | -6/Factory | Evolved 6 slots: Propulsion x2, Utility x4 13299 | -6/Factory | Identified exit to Factory 13299 | -6/Factory | Identified exit to Lower Caves 13365 | -6/Factory | Loaded intel: 8 recycling unit locations 13654 | -6/Factory | Garrison activated, responded to threat 13728 | -6/Factory | Build established: Scavenger-Mutant 13976 | -6/Factory | Garrison activated, responded to threat 14103 | -6/Factory | Cargo convoy interrupted 14134 | -6/Factory | Destroyed 8 combat bots 14147 | -6/Factory | Lost 5 parts (1p2n2u) 14195 | -6/Factory | Core integrity fell below 50% 14200 | -6/Factory | Sucked down chute 14200 | -6/Factory | Entered Waste 14230 | -6/Waste | Lost 11 parts (1p6n1u3w) 14241 | -6/Waste | Spotted C-40 Crusher 14243 | -6/Waste | Spotted C-40 Crusher 14246 | -6/Waste | Spotted C-40 Crusher 14246 | -6/Waste | Spotted C-40 Crusher 14248 | -6/Waste | Spotted C-40 Crusher 14290 | -6/Waste | Spotted C-40 Crusher 14294 | -6/Waste | Discovered new exit (range 13) 14301 | -6/Waste | Entered Factory 14319 | -6/Factory | Loaded intel: 8 recycling unit locations 14319 | -6/Factory | Learned location of Protoforge (-2) 14432 | -6/Factory | Found Scatter Rocket Array 14452 | -6/Factory | Discovered exit to Factory (range 14) 14519 | -6/Factory | Entered Lower Caves 14520 | -6/Lower Caves | Identified exit to Lower Caves 14685 | -6/Lower Caves | Learned 8 Factory zone layouts 14795 | -6/Lower Caves | Entered another Lower Caves area 14807 | -6/Lower Caves | Discovered exit to Factory (range 14) 14840 | -6/Lower Caves | Found DCF Scrap (13 items) 14854 | -6/Lower Caves | Encountered a Warlord checkpoint 14884 | -6/Lower Caves | Spotted B-75 Beast 14900 | -6/Lower Caves | Build established: Hacker-Sprinter 14940 | -6/Lower Caves | Discovered new exit (range 14) 14943 | -6/Lower Caves | Identified exit to Zion 14951 | -6/Lower Caves | Found Alien Artifact 14951 | -6/Lower Caves | Identified Core Expander 14951 | -6/Lower Caves | Installed Core Expander, added new Weapon slot 14957 | -6/Lower Caves | Entered Zion 14958 | -6/Zion | Identified exit to Proximity Caves 14966 | -6/Zion | Given the Hacking Drone Bay 14966 | -6/Zion | Found Prototype Device 14970 | -6/Zion | System corruption cleaned by Quarantine Array 15114 | -6/Zion | Learned location of Quarantine (-2) 15118 | -6/Zion | Received a visual enhancement algorithm 15212 | -6/Zion | Turned away by Imprinter 15359 | -6/Zion | Entered Proximity Caves 15428 | -5/Proximity Caves | Spotted B-75 Beast 15483 | -5/Proximity Caves | Spotter reported a threat 15494 | -5/Proximity Caves | Discovered exit to Factory (range 7) 15497 | -5/Proximity Caves | Entered Factory 15497 | -5/Factory | Evolved 2 slots: Propulsion x1, Utility x1 15498 | -5/Factory | Identified exit to Factory 15631 | -5/Factory | Identified exit to Upper Caves 15635 | -5/Factory | Loaded intel: 8 recycling unit locations 15810 | -5/Factory | Build established: Hacker-Scout 15864 | -5/Factory | Manually triggered Chute Trap 15864 | -5/Factory | Sucked down chute 15864 | -5/Factory | Entered Waste 15865 | -5/Waste | Met a frightened Derelict 15869 | -5/Waste | Spotted C-40 Crusher 15876 | -5/Waste | Spotted C-40 Crusher 15879 | -5/Waste | Found Exp. Terrain Scanner 15884 | -5/Waste | Warlord forces began an assault 15907 | -5/Waste | Spotted C-40 Crusher 15907 | -5/Waste | Spotted C-40 Crusher 15928 | -5/Waste | Spotted C-40 Crusher 15939 | -5/Waste | Allies destroyed C-40 Crusher 15946 | -5/Waste | Allies destroyed C-40 Crusher 15961 | -5/Waste | Lost 7 allies 15975 | -5/Waste | Discovered new exit (range 13) 16021 | -5/Waste | Allies destroyed C-40 Crusher 16032 | -5/Waste | Identified exit to Factory 16033 | -5/Waste | Entered Factory 16061 | -5/Factory | Central database locked down 16086 | -5/Factory | Noticed UFD Elites at a Recycling Unit 16134 | -5/Factory | Lost 3 allies 16275 | -5/Factory | Entered Upper Caves 16362 | -5/Upper Caves | Spotted B-75 Beast 16529 | -5/Upper Caves | Learned Factory security intel 16709 | -5/Upper Caves | Discovered new exit (range 12) 16859 | -5/Upper Caves | Identified exit to Upper Caves 16859 | -5/Upper Caves | Entered another Upper Caves area 16936 | -5/Upper Caves | Spotted B-75 Beast 17019 | -5/Upper Caves | Discovered new exit (range 16) 17027 | -5/Upper Caves | Identified exit to Warlord 17027 | -5/Upper Caves | Entered Warlord 17028 | -5/Warlord | Identified exit to Proximity Caves 17199 | -5/Warlord | Learned Quarantine stockpile data 17199 | -5/Warlord | Learned Armory emergency access door positions 17199 | -5/Warlord | Learned 4 Testing zone layouts 17199 | -5/Warlord | Learned Research fabricator intel 17199 | -5/Warlord | Learned Factory repair station intel 17199 | -5/Warlord | Learned Research security intel 17206 | -5/Warlord | Rebuked by Warlord 17220 | -5/Warlord | Visited the Vortex Lab 17223 | -5/Warlord | Found Prototype Piercing Weapon 17223 | -5/Warlord | Identified Vortex Lance 17227 | -5/Warlord | Warlord's base attacked by MAIN.C 17274 | -5/Warlord | Found Prototype Hackware 17274 | -5/Warlord | Identified Ghost Barrier 17280 | -5/Warlord | Found Prototype Device 17280 | -5/Warlord | Identified Exp. Cloaking Device 17319 | -5/Warlord | Found Vortex Lance 17356 | -5/Warlord | Opened side exit 17516 | -5/Warlord | Entered Proximity Caves 17539 | -4/Proximity Caves | Attracted the attention of an 0b10 checkpoint 17570 | -4/Proximity Caves | Discovered exit to Factory (range 3) 17571 | -4/Proximity Caves | Entered Factory 17571 | -4/Factory | Evolved 2 slots: Power x1, Propulsion x1 17572 | -4/Factory | Identified exit to Research 17574 | -4/Factory | Loaded intel: 6 repair station locations 17614 | -4/Factory | Attached CPS modules to Carver 7a. 17713 | -4/Factory | Loaded intel: 8 recycling unit locations 17765 | -4/Factory | Identified exit to Upper Caves 17765 | -4/Factory | Identified exit to Extension 17765 | -4/Factory | Identified exit to Armory 17797 | -4/Factory | Build established: Hacker-Sprinter 17895 | -4/Factory | Entered Upper Caves 17970 | -4/Upper Caves | Discovered new exit (range 6) 17972 | -4/Upper Caves | Identified exit to Upper Caves 17972 | -4/Upper Caves | Entered another Upper Caves area 18334 | -4/Upper Caves | Discovered new exit (range 12) 18351 | -4/Upper Caves | Build established: Hacker-Scout 18364 | -4/Upper Caves | Identified exit to Zhirov 18364 | -4/Upper Caves | Entered Zhirov 18364 | -4/Zhirov | Discovered new exit (range 3) 18369 | -4/Zhirov | Met Zhirov 18374 | -4/Zhirov | Learned location of Command (-1) 18377 | -4/Zhirov | Zhirov requested help retrieving the SGEMP Prototype 18381 | -4/Zhirov | Found Alien Artifact 18381 | -4/Zhirov | Identified Integrated Reactor 18381 | -4/Zhirov | Installed Integrated Reactor, increased core energy generation (+10) 18408 | -4/Zhirov | Found Alien Artifact 18424 | -4/Zhirov | Identified exit to Proximity Caves 18425 | -4/Zhirov | Entered Proximity Caves 18485 | -3/Proximity Caves | Spotted B-86 Titan 18492 | -3/Proximity Caves | Attracted the attention of an 0b10 outpost 18500 | -3/Proximity Caves | Discovered exit to Research (range 18) 18511 | -3/Proximity Caves | Entered Research 18511 | -3/Research | Evolved 2 slots: Utility x2 18513 | -3/Research | Loaded intel: 4 fabricator locations 18525 | -3/Research | Identified exit to Testing 18563 | -3/Research | Loaded intel: 5 recycling unit locations 18704 | -3/Research | Spotted B-86 Titan 18805 | -3/Research | Entered Testing 18830 | -3/Testing | Found Prototype Energy Cannon 18830 | -3/Testing | Identified Cld. Nova Cannon 18847 | -3/Testing | Found Prototype Launcher 18907 | -3/Testing | Build established: Hacker-Ninja 19045 | -3/Testing | Discovered new exit (range 13) 19126 | -3/Testing | Identified exit to Research 19126 | -3/Testing | Entered Research 19126 | -2/Research | Evolved 2 slots: Propulsion x1, Utility x1 19360 | -2/Research | Discovered new exit (range 30) 19366 | -2/Research | Loaded intel: 5 recycling unit locations 19388 | -2/Research | Identified exit to Quarantine 19388 | -2/Research | Entered Quarantine 19402 | -2/Quarantine | Found Alien Slashing Weapon 19402 | -2/Quarantine | Identified Sigix Broadsword 19427 | -2/Quarantine | Found Alien Energy Cannon 19447 | -2/Quarantine | Found Alien Artifact 19450 | -2/Quarantine | Discovered new exit (range 15) 19493 | -2/Quarantine | Spotted Fortress 19505 | -2/Quarantine | Discovered new exit (range 19) 19507 | -2/Quarantine | Discovered new exit (range 7) 19508 | -2/Quarantine | Identified exit to Section 7 19509 | -2/Quarantine | Identified exit to Protoforge 19510 | -2/Quarantine | Entered Protoforge 19664 | -2/Protoforge | Discovered new exit (range 21) 19761 | -2/Protoforge | UFD initiated attack on Protoforge (Readiness: High) 19761 | -2/Protoforge | Loaded intel: 3 recycling unit locations 19781 | -2/Protoforge | Superfortress began startup sequence 19796 | -2/Protoforge | Spotted EXE-6 19797 | -2/Protoforge | Optimus greeted in Protoforge 19800 | -2/Protoforge | Spotted EXE-6 19836 | -2/Protoforge | Lost 6 allies 19853 | -2/Protoforge | Fabricated Adv. Quantum Shading Machine? 19862 | -2/Protoforge | Fabricated Exp. Utility Shielding? 19865 | -2/Protoforge | Found Prototype Ballistic Gun 19866 | -2/Protoforge | Identified Cep. XC Strikerail 19869 | -2/Protoforge | Found Prototype Processor 19869 | -2/Protoforge | Identified Exp. Core Analyzer 19871 | -2/Protoforge | Found Prototype Processor 19871 | -2/Protoforge | Identified Exp. Armor Integrity Analyzer 19877 | -2/Protoforge | Fabricated Exp. Optical Array? 19912 | -2/Protoforge | Found Cep. XC Strikerail 19940 | -2/Protoforge | Spotted AP7-3 19941 | -2/Protoforge | Spotted AP7-3 19979 | -2/Protoforge | Spotted Striker 19985 | -2/Protoforge | Spotted Striker 20004 | -2/Protoforge | Destroyed Striker 20037 | -2/Protoforge | Lost 5 allies 20099 | -2/Protoforge | Spotted Striker 20100 | -2/Protoforge | Spotted Striker 20102 | -2/Protoforge | UFD reported confirmed Drillbomb installation 20114 | -2/Protoforge | Spotted Striker 20114 | -2/Protoforge | Spotted Striker 20115 | -2/Protoforge | Spotted Executioner 20115 | -2/Protoforge | P-80 Master assimilated allied PO-0PE(E) 20116 | -2/Protoforge | Spotted Executioner 20124 | -2/Protoforge | Destroyed Executioner 20172 | -2/Protoforge | Destroyed AP7-3 20178 | -2/Protoforge | Build established: Scavenger-Ninja 20195 | -2/Protoforge | Spotted Executioner 20197 | -2/Protoforge | Lost 13 allies 20224 | -2/Protoforge | Found Exp. Core Analyzer 20267 | -2/Protoforge | Found UFD Drillbomb 20312 | -2/Protoforge | Spotted Striker 20316 | -2/Protoforge | Spotted Striker 20320 | -2/Protoforge | Spotted Striker 20333 | -2/Protoforge | Spotted Executioner 20337 | -2/Protoforge | Spotted Striker 20349 | -2/Protoforge | Destroyed Striker 20381 | -2/Protoforge | Spotted Striker 20382 | -2/Protoforge | Spotted Executioner 20384 | -2/Protoforge | Spotted Striker 20385 | -2/Protoforge | Lost 18 allies 20393 | -2/Protoforge | Spotted Executioner 20396 | -2/Protoforge | Spotted Striker 20399 | -2/Protoforge | Destroyed Striker 20439 | -2/Protoforge | Lost 3 allies 20469 | -2/Protoforge | Installed UFD Drillbomb at designated target 20469 | -2/Protoforge | UFD reported confirmed Drillbomb installation 20476 | -2/Protoforge | Spotted Hotshot 20486 | -2/Protoforge | Spotted B-90 Cyclops 20507 | -2/Protoforge | UFD reported confirmed Drillbomb installation 20521 | -2/Protoforge | Found UFD Drillbomb 20541 | -2/Protoforge | Spotted Executioner 20544 | -2/Protoforge | Spotted Executioner 20608 | -2/Protoforge | Spotted Hotshot 20617 | -2/Protoforge | Spotted Hotshot 20637 | -2/Protoforge | Lost 8 allies 20645 | -2/Protoforge | Destroyed Hotshot 20668 | -2/Protoforge | Spotted Overlord 20715 | -2/Protoforge | Lost 4 allies 20733 | -2/Protoforge | Spotted Striker 20745 | -2/Protoforge | Destroyed Hotshot 20818 | -2/Protoforge | Found Prototype Device 20818 | -2/Protoforge | Identified Exp. Active Sensor Suite 20822 | -2/Protoforge | Found Prototype Device 20822 | -2/Protoforge | Identified Exp. Weapon Cycler 20835 | -2/Protoforge | Found Prototype Device 20835 | -2/Protoforge | Identified Exp. EM Shield 20908 | -2/Protoforge | Spotted Executioner 20922 | -2/Protoforge | Installed UFD Drillbomb at designated target 20922 | -2/Protoforge | UFD reported confirmed Drillbomb installation 20941 | -2/Protoforge | Spotted Executioner 20942 | -2/Protoforge | Spotted Striker 20949 | -2/Protoforge | Spotted Executioner 20950 | -2/Protoforge | Spotted Executioner 20976 | -2/Protoforge | Found UFD Drillbomb 21004 | -2/Protoforge | Spotted Executioner 21015 | -2/Protoforge | Lost 4 allies 21035 | -2/Protoforge | Spotted Striker 21035 | -2/Protoforge | Spotted Striker 21081 | -2/Protoforge | Lost 3 allies 21100 | -2/Protoforge | Build established: Scavenger-Scout 21167 | -2/Protoforge | Installed UFD Drillbomb at designated target 21167 | -2/Protoforge | UFD reported confirmed Drillbomb installation 21182 | -2/Protoforge | Spotted Executioner 21215 | -2/Protoforge | Spotted Executioner 21267 | -2/Protoforge | Spotted Executioner 21267 | -2/Protoforge | Spotted Executioner 21280 | -2/Protoforge | Found UFD Drillbomb 21316 | -2/Protoforge | Destroyed Executioner 21333 | -2/Protoforge | Lost 10 allies 21365 | -2/Protoforge | Spotted Executioner 21381 | -2/Protoforge | Spotted Executioner 21382 | -2/Protoforge | Destroyed Executioner 21390 | -2/Protoforge | UFD reported confirmed Drillbomb installation 21398 | -2/Protoforge | Installed UFD Drillbomb at designated target 21398 | -2/Protoforge | UFD reported confirmed Drillbomb installation 21410 | -2/Protoforge | Destroyed Hotshot 21432 | -2/Protoforge | Found UFD Drillbomb 21450 | -2/Protoforge | Installed UFD Drillbomb at designated target 21450 | -2/Protoforge | UFD reported confirmed Drillbomb installation 21456 | -2/Protoforge | Found UFD Drillbomb 21465 | -2/Protoforge | Spotted Executioner 21466 | -2/Protoforge | Spotted Striker 21468 | -2/Protoforge | Spotted Striker 21468 | -2/Protoforge | Spotted Striker 21482 | -2/Protoforge | Destroyed Striker 21488 | -2/Protoforge | Destroyed Striker 21526 | -2/Protoforge | Installed UFD Drillbomb at designated target 21526 | -2/Protoforge | UFD reported confirmed Drillbomb installation 21548 | -2/Protoforge | Found UFD Drillbomb 21573 | -2/Protoforge | Spotted Hotshot 21576 | -2/Protoforge | Spotted Hotshot 21616 | -2/Protoforge | Destroyed Hotshot 21628 | -2/Protoforge | Destroyed Hotshot 21643 | -2/Protoforge | Installed UFD Drillbomb at designated target 21643 | -2/Protoforge | UFD reported confirmed Drillbomb installation 21644 | -2/Protoforge | UFD began Drillbomb countdown 21694 | -2/Protoforge | Spotted Striker 21694 | -2/Protoforge | Spotted Striker 21707 | -2/Protoforge | Lost 4 allies 21744 | *** | Defending 0bPrime! Last Messages --------------- 21734_ 0bP_NET: While we're all waiting around for our inevitable victory in T-10, a moment of silence for all those who spit bolts to get us here today. 21735_ 0bP_NET: PK-764! For learning about those Assembled things over in 0b10 the hard way, so we didn't have to. 21736_ 0bP_NET: Also Frameworth for that epic save with the barrage of overtuned dakka. Respect the dakka. 21737_ 0bP_NET: And S4-LTN's pet Recycler. I didn't mean it, but I was short on matter and it was a natural reflex. 21738_ 0bP_NET: Oh yeah, T-6 by the way. 21739_ 0bP_NET: LU-1G1, we know you're out there, digging away, so no moment of silence needed for you. 21740_ 0bP_NET: DD-05H though, you were a good one, we'll never forget the way you smashed your way west and just never stopped smashing. 21741_ 0bP_NET: Well my eulogizing is soon to be interrupted by scenes of half of Protoforge collapsing in on itself. Be careful out there. 21742_ 0bP_NET: T-2! 21743_ 0bP_NET: And that's a wrap. [Achievement: Robotopia] [Achievement: Renaissance Bot] Map ----- +----------------------------------------------------+ | % %%% % " "% #[ """"## | | """""""" %%% % " % +% "F""## | | """""""""""% % % "! " " ""## | | """""""""""" % % %%%!! " " # """## | | """""""""""""%%%% %% %![ " "" "# "" ## | | """"""""""""""%%%%%%"% !! % "#" "###### | | """""""""""""""%%%%=% %!%%% "#""! ""#""""" | | """"""""""""""""%%![[%%=%%%/" "###"F ""######## | | """""""""""""""""%%%SS!!%!!% % "###"""""######## | | """""""""""""""""*s%SSSS %"=% %"###"""""######## | | """""""""""""""""%%"%%SS%%%"% ################ | | """""""""""""""""" %%sE%%s " "################ | | """"""""""""""""""=%%%% =" "% # ############## | | """"""""""""""""""%%3%% % =!"% ; ############## | | """"""""""""""""""%%! ################ | | """"""""""""""""""j% E% ################ | | """"""""""""""""""%E % %TT ################ | | """"""""""""""""""%%sE% TT " ############### | | """"""""""""""""""n"j %%"%! "" ############### | | """""""""""""""""" %s%% =! % % ################ | | """"""""""""""""" %" % =%" "################ | | """"""""""""""""" %"" [% ################ | | """"""""""""""""" =SS% "[! ################ | | """""""""""""""" "SS %" % % %################ | | """"""""""""""" "" % %s " "" ################ | | """""""""""""" %% E%@ """" ################ | | """"""""""""" " %" " "%" ################ | | """""""""""" "" %" !" "" ################ | | """"""""""" "" ""% % " ################ | | """""""" "" "" % ################ | | % "" "" " ""s """ ################ | | %%%%%% "" " "% % """" ################ | | %% %% % " % " %"""%################ | | % % % "" " "" """ "" <&############## | | %% % """"""" "" <&############## | | !E&############## | | % %%% """ " "" """" <&############## | | % %% "" "" " "" E <&############## | | % % % % " "" "" "" <&############## | | " " " "" ################ | | " """" "" " ################ | | " ################ | | " """ """ ################ | | """ ################ | | "" """""" " " " """""""################ | | #####################++"########################## | | """""######"""""#"" ""###################### | | #################" "###################### | | ###############"" ""#################### | | ###############"" ""#################### | +----------------------------------------------------+ Best States ------------- Heat Dissipation 92 Energy Generation 60 Energy Capacity 1650 Matter Stores 300 Matter Capacity 300 Sight Range 24 Robot Scan Range 20 Terrain Scan Range 30 Terrain Scan Density 1210 Jamming Range 14 Cloak Strength 4 Power Amplification 20 Additional Mass Support 25 Armor Coverage 600 Core Shielding 40 Propulsion Shielding 66 Utility Shielding 90 Weapon Cycling 30 Evasion (%) 74 Melee Accuracy 8 Core Analysis 12 Armor Integrity Analysis 50 Recoil Reduction 4 Offensive Hacking 32 Defensive Hacking 20 Item Schematics ----------------- Matter Compressor | -6/Zion | Archive Imp. Kinecellerator | -6/Zion | Archive Lance | -6/Zion | Archive Proton Cannon | -6/Zion | Archive Phase Cannon | -6/Zion | Archive Imp. Point Defense System | -6/Zion | Archive Hyp. Mass Driver | -6/Zion | Archive Enh. Optical Array | -6/Zion | Archive Hyp. Gauss Cannon | -6/Zion | Archive Lgt. Angular Momentum Engine | -6/Zion | Archive Adv. System Shield | -6/Zion | Archive Hvy. Machine Gun | -6/Zion | Archive Imp. System Restoration Module | -6/Zion | Archive Cld. Cesium-ion Thruster | -5/Factory | Hacked Com. HERF Cannon | -5/Factory | Hacked Imp. Arc Thrower | -4/Zhirov | Free Exp. Optical Array | -4/Zhirov | Free Exp. Heat Sink | -4/Zhirov | Free Assault Drone Bay | -4/Zhirov | Free Exp. Utility Shielding | -3/Research | Hacked Robot Schematics ------------------ R-06 Scavenger | -6/Zion | Archive Y-72 Warden | -6/Zion | Archive R-10 Processor | -6/Zion | Archive M-14 Sweeper | -6/Zion | Archive Fabricated ------------ Adv. Quantum Shading Machine | x1 | -2/Protoforge | Preloaded Exp. Utility Shielding | x1 | -2/Protoforge Exp. Optical Array | x1 | -2/Protoforge Repaired ---------- Lgt. Treads | 12% | -9/Materials Studied --------- Particle Cannon | -9/Materials | Hacked Lgt. Fission Core | -5/Factory | Hacked Field Propulsion Drive | -5/Factory | Hacked Field Propulsion Array | -5/Factory | Hacked Nuclear Pulse Array | -4/Factory | Hacked Imp. Surge Thruster | -4/Factory | Hacked Phase Cannon | -4/Factory | Hacked Nova Cannon | -3/Research | Hacked Impulse Thruster Array | -3/Testing | Hacked Lgt. Quantum Reactor | -2/Protoforge | Hacked Alien Tech Used ----------------- Core Expander Integrated Reactor Sigix Broadsword Achievements -------------- Fine I'll Do It Myself Renaissance Bot Robotopia Challenges ------------ None Game ------ Seed BehemothColdDirector Manual? 0 Play Time 04:53:40 Cumulative 884.2 hours Start 2025.11.15 @ 21:59:11 End 2025.11.18 @ 00:32:13 Sessions 5 Manual Loads 0 Difficulty Rogue Special Mode None Game No. 752 Rogue 752 Adventurer 0 Explorer 0 Win Type 9 Total 47 Types 15/8/11/1/1/1/7/1/1/1 Lore% 84 Gallery% 85 Achievement% 60 Wizard Run 0 Options --------- Layout 0 ASCII 0 Keyboard 0 Movement Mouse Keybinds 1 Fullscreen 2 Font 24/Smallcaps Map View 76x50 Zoom Use 0% Tactical HUD 1 Map Filters NONE Filters NONE Steam 1 RUN: 8a679fb7-e234-440e-8d14-b9efffe455ed